Workbook

Sheet About PermPave HyPerMod
A1: North Carolina Long-Term Permeable Pavement Hydrologic Performance Model
A3: LONG-TERM MODELING OF BIORETENTION HYDROLOGY WITH DRAINMOD
B4: Developed by: Drs. Alessandra P. Smolek and William F. Hunt
B5: User Interface by: Brad J. Wardynski and Alessandra Smolek
B6: Department of Biological and Agricultural Engineering
B7: North Carolina State University, Raleigh, North Carolina
B8: Contact: Dr. William (Bill) F. Hunt, 919-515-6715, bill_hunt@ncsu.edu
B11: INTRODUCTION
B12: Previous permerable pavement design standards in North Carolina relied upon capture and treatment of a specific water quality volume. This "one size fits all" approach, while conservative, does not allow designers and regulators to assess the average annual performance of permeable pavements with varying design features. DRAINMOD allows for accurate long-term prediction of permeable pavement hydrology by simulating drainage system designs under complex saturated and unsaturated conditions using real weather data. Output from DRAINMOD simulations of various permeable pavement designs for the state of North Carolina are provided in this model.
B21: MODEL APPLICATIONS
B22: The North Carolina Long-Term Permeable Pavement Hydrologic Performance Model (PermPave HyPerMod) may be used to estimate the hydrologic and water quality functions of permeable pavement cells with specific hydraulic design features. Analysis is performed on an arbitrary permeable pavement application containing the NCDEQ recommended aggregate specifications. Designs can be optimized for project constraints by adjusting the profile depth, internal water storage (IWS), and run-on ratio (ratio of contributing drainage area to permeable pavement surface area).
J27: Project Partners
B30: MODEL LIMITATIONS
B31: This model may be used as a tool to analyze permeable pavement performance, however, all models are approximations of reality; users should understand the inherent error associated with the model output [see Smolek et. al (submitted), Smolek et al. (submitted) and Smolek (2016) for more model details].
B38: REFERENCES
B39: Model
B40: Smolek, A. P., Winston, R. J., Dorsey, J. D., Youssef, M. and Hunt, W. F. (submitted). “Calibration and validation of DRAINMOD to predict annual permeable pavement hydrology.” Journal of Hydrology.
B44: Smolek, A. P., Winston, R. J., Dorsey, J. D., and Hunt, W. F. (submitted). “Modeling the influence of design parameters on annual permeable pavement hydrology using DRAINMOD.” Journal of Environmental Management.
B48: Smolek, A.P. (2016). Monitoring and modeling the performance of ultra-urban stormwater control measures in North Carolina and Ohio.Dissertation, North Carolina State University. Raleigh, NC.
B52: Average Runoff Nutrient Concentrations
B53: Passeport, E., and W.F. Hunt. (2009). "Asphalt Parking Lot Runoff Nutrient Characterization for Eight Sites in North Carolina, USA." Journal of Environmental Engineering. 14(4): 352-361.
B57: Average Permeable Pavement Drainage Effluent Concentrations
B58: Bean, E., Hunt, W., and Bidelspach, D. (2007). “Evaluation of four permeable pavement sites in Eastern North Carolina for runoff reduction and water quality impacts.” Journal of Irrigation and Drainage Engineering, 133(6), 583-592.
B62: Collins, K. A., Hunt, W., and Hathaway, J. (2010). “Side-by-side comparison of nitrogen species removal for four types of permeable pavement and standard asphalt in eastern North Carolina.” J. Hydrol. Eng., 15(6), 512-521.
B66: Smolek, A. P., Anderson, A. R., and Hunt, W. F. (submitted). “Hydrologic and water quality evaluation of a permeable pavement and biofiltration device in series.” Journal of Sustainable Water in the Built Environment.
B70: Smolek, A.P., Winston, R.J, and Hunt, W.F. (submitted). "Hydrologic and water quality performance of permeable pavement with internal water storage over a clay soil in Durham, North Carlina." Science of the Total Environment

Sheet PermPave HyPerMod
A1: North Carolina Long-Term Permeable Pavement Hydrologic Performance Model
A2: DESIGN INPUT PARAMETERS | M2: NOTES
A3: Units | B3: English
A4: Hydrologic Soil Group | B4: A
A5: Profile Depth (Pavement + Aggregate) | B5: 18 | C5: =IF(B3="SI",IF(OR(B5=23,B5=30,B5=45,B5=60,B5=90),"cm","PLEASE UPDATE!"),IF(B3="ENGLISH",IF(OR(B5=9,B5=12,B5=18,B5=24,B5=36),"in","PLEASE UPDATE!"))) -> in
A6: Depth of IWS | B6: 6 | C6: =IF(AND(B3="SI",OR(B5=23,B5=30),OR(B6=7.5,B6=15,B6=30,B6=45)),"PLEASE UPDATE!",IF(AND(B3="English",OR(B5=9,B5=12),OR(B6=3,B6=6,B6=12,B6=18)),"PLEASE UPDATE!",IF(B3="SI",IF(OR(B6="NO IWS",B6=7.5,B6=15,B6=30,B6=45),"cm","PLEASE UPDATE!"),IF(B3="ENGLISH",IF(OR(B6="NO IWS",B6=3,B6=6,B6=12,B6=18),"in","PLEASE UPDATE!"))))) -> in
A7: Run-on Ratio | B7: 1
A8: Factor of Safety | B8: NONE
A10: WATER QUALITY CHARACTERIZATION
A11: Runoff Avg TN Conc. | B11: 1.63 | C11: mg/L
A12: Drainage Avg TN Conc. | B12: 1.11 | C12: mg/L
A13: Runoff Avg TP Conc. | B13: 0.19 | C13: mg/L
A14: Drainage Avg TP Conc. | B14: 0.05 | C14: mg/L
A16: DESIGN OUTPUT PARAMETERS
A17: Maximum Subgrade Ksat | B17: =IF(B3="SI",HLOOKUP(B4,All_Simulations_PP!B1:F2,2),HLOOKUP(B4,All_Simulations_PP!B1:F3,3)) -> 1.18 | C17: =IF(B3="SI","cm/hr","in/hr") -> in/hr
A19: HYDROLOGY | B19: =IF(B3="SI","Total (cm/yr)","Total (in/yr)") -> Total (in/yr) | C19: Percent of Total
A20: Total Inflow (Rainfall + Runoff) | B20: =IF(B3="SI",INDEX(RAINFALLSI,MATCH(B4&B5&B6&B7,SOILGROUP&PROFILEDEPTHSI&IWS&RUNON,0)),INDEX(RAINFALLSI,MATCH(B4&B5&B6&B7,SOILGROUP&PROFILEDEPTH&IWSENG&RUNON,0))/2.54) -> 71.05511811
A21: Drainage | B21: =IF(B8="NONE",IF(B3="SI",INDEX(DRAINAGE,MATCH(B4&B5&B6&B7,SOILGROUP&PROFILEDEPTHSI&IWS&RUNON,0)), INDEX(DRAINAGE,MATCH(B4&B5&B6&B7,SOILGROUP&PROFILEDEPTH&IWSENG&RUNON,0))/2.54),IF(B3="SI",INDEX(Drainage10,MATCH(B4&B5&B6&B7,SOILGROUP&PROFILEDEPTHSI&IWS&RUNON,0)),INDEX(Drainage10,MATCH(B4&B5&B6&B7,SOILGROUP&PROFILEDEPTH&IWSENG&RUNON,0))/2.54)) -> 5.539370079 | C21: =IF(B21="","",B21/$B$20) -> 0.0779587766
A22: Surface Runoff | B22: =IF(B8="NONE",IF(B3="SI",INDEX(RUNOFF,MATCH(B4&B5&B6&B7,SOILGROUP&PROFILEDEPTHSI&IWS&RUNON,0)), INDEX(RUNOFF,MATCH(B4&B5&B6&B7,SOILGROUP&PROFILEDEPTH&IWSENG&RUNON,0))/2.54),IF(B3="SI",INDEX(Runoff10,MATCH(B4&B5&B6&B7,SOILGROUP&PROFILEDEPTHSI&IWS&RUNON,0)),INDEX(Runoff10,MATCH(B4&B5&B6&B7,SOILGROUP&PROFILEDEPTH&IWSENG&RUNON,0))/2.54)) -> 0.3070866142 | C22: =IF(B22="","",B22/$B$20) -> 0.004321808511
A23: Exfiltration + Evaporation | B23: =IF(B8="NONE",IF(B3="SI",INDEX(EvapExfil,MATCH(B4&B5&B6&B7,SOILGROUP&PROFILEDEPTHSI&IWS&RUNON,0)), INDEX(EvapExfil,MATCH(B4&B5&B6&B7,SOILGROUP&PROFILEDEPTH&IWSENG&RUNON,0))/2.54),IF(B3="SI",INDEX(EvapExfil10,MATCH(B4&B5&B6&B7,SOILGROUP&PROFILEDEPTHSI&IWS&RUNON,0)),INDEX(EvapExfil10,MATCH(B4&B5&B6&B7,SOILGROUP&PROFILEDEPTH&IWSENG&RUNON,0))/2.54)) -> 65.20866142 | C23: =IF(B23="","",B23/$B$20) -> 0.9177194149
A25: VOLUME REDUCTION | B25: =C23 -> 0.9177194149
A26: TREATS 90% OF RUNOFF? | B26: =IF(B20="","",IF(C22>10%,"NO","YES")) -> YES
A28: WATER QUALITY | B28: =IF(B3="SI","Total (kg/ha-yr)","Total (lb/ac-yr)") -> Total (lb/ac-yr) | C28: Percent Reduction
A29: Influent Avg Total N | B29: =IF(B3="SI",IF(B20="","",(B20*B11)*0.1/(1+B7)),IF(B20="","",(B20*B11)*2.54*0.8922*0.1/(1+B7))) -> 13.12347686
A30: Effluent Avg Total N | B30: =IF(B3="SI",IF(B20="","",(B22*B11*0.1/(1+B7))+(B21*B12*0.1/(1+B7))),IF(B20="","",(B22*B11*0.1/(1+B7)*2.54*0.8922)+(B21*B12*0.1/(1+B7)*2.54*0.8922))) -> 0.753422751 | C30: =IF(B20="","",(B29-B30)/B29) -> 0.9425896995
A31: Influent Avg Total P | B31: =IF(B3="SI",IF(B20="","",(B20*B13)*0.1/(1+B7)),IF(B20="","",(B20*B13)*2.54*0.8922*0.1/(1+B7))) -> 1.529730432
A32: Effluent Avg Total P | B32: =IF(B3="SI",IF(B20="","",(B22*B13*0.1/(1+B7))+(B21*B14*0.1/(1+B7))),IF(B20="","",(B22*B13*0.1/(1+B7)*2.54*0.8922)+(B21*B14*0.1/(1+B7)*2.54*0.8922))) -> 0.037994337 | C32: =IF(B20="","",(B31-B32)/B31) -> 0.975162724
E45: Created by: | F45: Drs. Alessandra P. Smolek and William F. Hunt, NCSU, 2016
E46: Interface by: | F46: Brad J. Wardynski and Dr. Alessandra P. Smolek
E47: Contact: | F47: Dr. William (Bill) F. Hunt, 919-515-6715, bill_hunt@ncsu.edu
E48: Funding by: | F48: Interlocking Concrete Pavement Institute, USEPA - Region 4, National Oceanic Atmospheric Administration
E49: References: | F49: Model: Smolek et al. (submitted), Smolek et al. (submitted), Smolek (2016). Influent Concentrations: Passeport and Hunt, 2009. Effluent Concentrations: Bean et al. 2007, Collins et al. 2010, Smolek et al. (submitted), Smolek et al. (submitted).

Sheet All_Simulations_PP (hidden)
A1: Soil Type | B1: A | C1: B | D1: C | E1: D (avg.) | F1: D (extreme) | H1: Variable Selection Lists
A2: Ksat (cm/hr) | B2: 3 | C2: 0.35 | D2: 0.05 | E2: 0.02 | F2: 0.005 | H2: Factors of Safety | I2: Units | J2: Profile Depth | K2: Run-on Ratio | L2: Depth of IWS
A3: Ksat (in/hr) | B3: =ROUND(B2/2.54,2) -> 1.18 | C3: =ROUND(C2/2.54,2) -> 0.14 | D3: =(ROUND(D2/2.54,3)) -> 0.02 | E3: =E2/2.54 -> 0.007874015748 | F3: =ROUND(F2/2.54,4) -> 0.002 | H3: Safety | I3: Units | J3: Profile Depth | K3: Run-on Ratio | L3: IWS
H4: NONE | I4: SI | J4: =IF('PermPave HyPerMod'!B3="SI",23,9) -> 9 | K4: 0 | L4: NO IWS
H5: 0.1 | I5: English | J5: =IF('PermPave HyPerMod'!B3="SI",30,12) -> 12 | K5: 0.5 | L5: =IF(OR('PermPave HyPerMod'!B5=23,'PermPave HyPerMod'!B5=30,'PermPave HyPerMod'!B5=9,'PermPave HyPerMod'!B5=12),"",IF('PermPave HyPerMod'!B3="SI",7.5,3)) -> 3
J6: =IF('PermPave HyPerMod'!B3="SI",45,18) -> 18 | K6: 1 | L6: =IF(OR('PermPave HyPerMod'!B5=23,'PermPave HyPerMod'!B5=30,'PermPave HyPerMod'!B5=9,'PermPave HyPerMod'!B5=12),"",IF('PermPave HyPerMod'!B3="SI",15,6)) -> 6
J7: =IF('PermPave HyPerMod'!B3="SI",60,24) -> 24 | K7: 2 | L7: =IF(OR('PermPave HyPerMod'!B5=23,'PermPave HyPerMod'!B5=30,'PermPave HyPerMod'!B5=45,'PermPave HyPerMod'!B5=9,'PermPave HyPerMod'!B5=12,'PermPave HyPerMod'!B5=18),"",IF('PermPave HyPerMod'!B3="SI",30,12)) -> 
J8: =IF('PermPave HyPerMod'!B3="SI",90,36) -> 36 | K8: 4 | L8: =IF('PermPave HyPerMod'!B3="SI",IF('PermPave HyPerMod'!B5=90,45,""),IF('PermPave HyPerMod'!B3="English",IF('PermPave HyPerMod'!B5=36,18,""))) -> 
A10: A,B,C, or D | B10: 9,12,18,24 or 36 in | C10: 23, 30, 45, 60 or 90 cm | D10: 3, 6, 12, 18 in. | E10: 7.5, 15, 30, 45 cm
A11: Soil Type | B11: Profile Depth | C11: Profile Depth | D11: Depth of IWS | E11: Depth of IWS | F11: Run-on Ratio | G11: % Drainage | H11: % Runoff | I11: % Evap | J11: % Exfiltration | K11: % Evap + Exf | L11: Rainfall | M11: Evap | N11: Drainage | O11: Runoff | P11: Exfil | Q11: EvapExfil | R11: EvapExfil10 | S11: Runoff10 | T11: Drainage10
A12: A | B12: 9 | C12: 23 | D12: NO IWS | E12: NO IWS | F12: 0 | G12: =N12/L12*100 -> 16.83386347 | H12: =O12/L12*100 -> 0.8155941603 | I12: =M12/L12*100 -> 23.45648805 | J12: =100-G12-H12-I12 -> 58.89405432 | K12: =I12+J12 -> 82.35054237 | L12: 108.14 | M12: 25.36584618 | N12: 18.20413996 | O12: 0.881983525 | P12: 63.68803034 | Q12: =M12+P12 -> 89.05387652 | R12: =Q12*0.9 -> 80.14848887 | S12: =O12*1.1 -> 0.9701818775 | T12: =L12-(R12+S12) -> 27.02132926
A13: A | B13: 12 | C13: 30 | D13: NO IWS | E13: NO IWS | F13: 0 | G13: 17.10300954 | H13: 0.2365223065 | I13: 23.44833211 | J13: 59.21213604 | K13: =I13+J13 -> 82.66046815 | L13: 108.14 | M13: 25.35702634 | N13: 18.49519452 | O13: 0.2557752222 | P13: 64.03200391 | Q13: =M13+P13 -> 89.38903026 | R13: =Q13*0.9 -> 80.45012723 | S13: =O13*1.1 -> 0.2813527445 | T13: =L13-(R13+S13) -> 27.40852002
A14: A | B14: 18 | C14: 45 | D14: NO IWS | E14: NO IWS | F14: 0 | G14: 16.98882636 | H14: 0 | I14: 23.44833211 | J14: 59.56284153 | K14: 83.01117364 | L14: 108.14 | M14: 25.35702634 | N14: 18.37171683 | O14: 0 | P14: 64.41125683 | Q14: 89.76828317 | R14: 80.79145486 | S14: 0 | T14: 27.34854514
A15: A | B15: 18 | C15: 45 | D15: 3 | E15: 7.5 | F15: 0 | G15: 8.686077808 | H15: 0 | I15: 23.44833211 | J15: 67.86559008 | K15: 91.31392219 | L15: 108.14 | M15: 25.35702634 | N15: 9.393124541 | O15: 0 | P15: 73.38984912 | Q15: 98.74687546 | R15: 88.87218791 | S15: 0 | T15: 19.26781209
A16: A | B16: 18 | C16: 45 | D16: 6 | E16: 15 | F16: 0 | G16: 2.830111736 | H16: 0 | I16: 23.44833211 | J16: 73.72155615 | K16: 97.16988826 | L16: 108.14 | M16: 25.35702634 | N16: 3.060482832 | O16: 0 | P16: 79.72249082 | Q16: 105.0795172 | R16: 94.57156545 | S16: 0 | T16: 13.56843455
A17: A | B17: 24 | C17: 60 | D17: NO IWS | E17: NO IWS | F17: 0 | G17: 16.899111 | H17: 0 | I17: 23.44833211 | J17: 59.65255689 | K17: 83.100889 | L17: 108.14 | M17: 25.35702634 | N17: 18.27469864 | O17: 0 | P17: 64.50827502 | Q17: 89.86530136 | R17: 80.87877123 | S17: 0 | T17: 27.26122877
A18: A | B18: 24 | C18: 60 | D18: 3 | E18: 7.5 | F18: 0 | G18: 6.66340429 | H18: 0 | I18: 23.44833211 | J18: 69.8882636 | K18: 93.33659571 | L18: 108.14 | M18: 25.35702634 | N18: 7.205805399 | O18: 0 | P18: 75.57716826 | Q18: 100.9341946 | R18: 90.84077514 | S18: 0 | T18: 17.29922486
A19: A | B19: 24 | C19: 60 | D19: 6 | E19: 15 | F19: 0 | G19: 2.773020145 | H19: 0 | I19: 23.44833211 | J19: 73.77864774 | K19: 97.22697985 | L19: 108.14 | M19: 25.35702634 | N19: 2.998743985 | O19: 0 | P19: 79.78422967 | Q19: 105.141256 | R19: 94.62713041 | S19: 0 | T19: 13.51286959
A20: A | B20: 24 | C20: 60 | D20: 12 | E20: 30 | F20: 0 | G20: 0.4567327298 | H20: 0 | I20: 23.44833211 | J20: 76.09493516 | K20: 99.54326727 | L20: 108.14 | M20: 25.35702634 | N20: 0.493910774 | O20: 0 | P20: 82.28906288 | Q20: 107.6460892 | R20: 96.8814803 | S20: 0 | T20: 11.2585197
A21: A | B21: 36 | C21: 90 | D21: NO IWS | E21: NO IWS | F21: 0 | G21: 16.9969823 | H21: 0 | I21: 23.44833211 | J21: 59.55468559 | K21: 83.0030177 | L21: 108.14 | M21: 25.35702634 | N21: 18.38053666 | O21: 0 | P21: 64.402437 | Q21: 89.75946334 | R21: 80.78351701 | S21: 0 | T21: 27.35648299
A22: A | B22: 36 | C22: 90 | D22: 3 | E22: 7.5 | F22: 0 | G22: 8.694233749 | H22: 0 | I22: 23.44833211 | J22: 67.85743414 | K22: 91.30576625 | L22: 108.14 | M22: 25.35702634 | N22: 9.401944376 | O22: 0 | P22: 73.38102928 | Q22: 98.73805562 | R22: 88.86425006 | S22: 0 | T22: 19.27574994
A23: A | B23: 36 | C23: 90 | D23: 6 | E23: 15 | F23: 0 | G23: 2.838267678 | H23: 0 | I23: 23.44833211 | J23: 73.71340021 | K23: 97.16173232 | L23: 108.14 | M23: 25.35702634 | N23: 3.069302667 | O23: 0 | P23: 79.71367099 | Q23: 105.0706973 | R23: 94.5636276 | S23: 0 | T23: 13.5763724
A24: A | B24: 36 | C24: 90 | D24: 12 | E24: 30 | F24: 0 | G24: 0.5219802626 | H24: 0 | I24: 23.44833211 | J24: 76.02968763 | K24: 99.47801974 | L24: 108.14 | M24: 25.35702634 | N24: 0.564469456 | O24: 0 | P24: 82.2185042 | Q24: 107.5755305 | R24: 96.81797749 | S24: 0 | T24: 11.32202251
A25: A | B25: 36 | C25: 90 | D25: 18 | E25: 45 | F25: 0 | G25: 0.03262376641 | H25: 0 | I25: 23.44833211 | J25: 76.51904412 | K25: 99.96737623 | L25: 108.14 | M25: 25.35702634 | N25: 0.035279341 | O25: 0 | P25: 82.74769432 | Q25: 108.1047207 | R25: 97.29424859 | S25: 0 | T25: 10.84575141
A26: A | B26: 9 | C26: 23 | D26: NO IWS | E26: NO IWS | F26: 0.5 | G26: 20.8301573 | H26: 1.573002564 | I26: 19.92931883 | J26: 57.66752131 | K26: 77.59684014 | L26: 144.31 | M26: 28.76 | N26: 30.06 | O26: 2.27 | P26: 83.22 | Q26: 111.98 | R26: 100.782 | S26: 2.497 | T26: 41.031
A27: A | B27: 12 | C27: 30 | D27: NO IWS | E27: NO IWS | F27: 0.5 | G27: 21.23899938 | H27: 0.6929526713 | I27: 19.9223893 | J27: 58.14565865 | K27: 78.06804795 | L27: 144.31 | M27: 28.75 | N27: 30.65 | O27: 1 | P27: 83.91 | Q27: 112.66 | R27: 101.394 | S27: 1.1 | T27: 41.816
A28: A | B28: 18 | C28: 45 | D28: NO IWS | E28: NO IWS | F28: 0.5 | G28: 21.25978796 | H28: 0.04850668699 | I28: 19.9223893 | J28: 58.76931606 | K28: 78.69170536 | L28: 144.31 | M28: 28.75 | N28: 30.68 | O28: 0.07 | P28: 84.81 | Q28: 113.56 | R28: 102.204 | S28: 0.077 | T28: 42.029
A29: A | B29: 18 | C29: 45 | D29: 3 | E29: 7.5 | F29: 0.5 | G29: 12.23754418 | H29: 0.04850668699 | I29: 19.9223893 | J29: 67.79155984 | K29: 87.71394914 | L29: 144.31 | M29: 28.75 | N29: 17.66 | O29: 0.07 | P29: 97.83 | Q29: 126.58 | R29: 113.922 | S29: 0.077 | T29: 30.311
A30: A | B30: 18 | C30: 45 | D30: 6 | E30: 15 | F30: 0.5 | G30: 4.691289585 | H30: 0.04850668699 | I30: 19.9223893 | J30: 75.33781443 | K30: 95.26020373 | L30: 144.31 | M30: 28.75 | N30: 6.77 | O30: 0.07 | P30: 108.72 | Q30: 137.47 | R30: 123.723 | S30: 0.077 | T30: 20.51
A31: A | B31: 24 | C31: 60 | D31: NO IWS | E31: NO IWS | F31: 0.5 | G31: 21.18356316 | H31: 0 | I31: 19.9223893 | J31: 58.89404754 | K31: 78.81643684 | L31: 144.31 | M31: 28.75 | N31: 30.57 | O31: 0 | P31: 84.99 | Q31: 113.74 | R31: 102.366 | S31: 0 | T31: 41.944
A32: A | B32: 24 | C32: 60 | D32: 3 | E32: 7.5 | F32: 0.5 | G32: 9.805280299 | H32: 0 | I32: 19.9223893 | J32: 70.2723304 | K32: 90.1947197 | L32: 144.31 | M32: 28.75 | N32: 14.15 | O32: 0 | P32: 101.41 | Q32: 130.16 | R32: 117.144 | S32: 0 | T32: 27.166
A33: A | B33: 24 | C33: 60 | D33: 6 | E33: 15 | F33: 0.5 | G33: 4.608135264 | H33: 0 | I33: 19.9223893 | J33: 75.46947543 | K33: 95.39186474 | L33: 144.31 | M33: 28.75 | N33: 6.65 | O33: 0 | P33: 108.91 | Q33: 137.66 | R33: 123.894 | S33: 0 | T33: 20.416
A34: A | B34: 24 | C34: 60 | D34: 12 | E34: 30 | F34: 0.5 | G34: 0.7553184118 | H34: 0 | I34: 19.9223893 | J34: 79.32229229 | K34: 99.24468159 | L34: 144.31 | M34: 28.75 | N34: 1.09 | O34: 0 | P34: 114.47 | Q34: 143.22 | R34: 128.898 | S34: 0 | T34: 15.412
A35: A | B35: 36 | C35: 90 | D35: NO IWS | E35: NO IWS | F35: 0.5 | G35: 21.27364701 | H35: 0 | I35: 19.9223893 | J35: 58.80396369 | K35: 78.72635299 | L35: 144.31 | M35: 28.75 | N35: 30.7 | O35: 0 | P35: 84.86 | Q35: 113.61 | R35: 102.249 | S35: 0 | T35: 42.061
A36: A | B36: 36 | C36: 90 | D36: 3 | E36: 7.5 | F36: 0.5 | G36: 12.2444737 | H36: 0 | I36: 19.9223893 | J36: 67.833137 | K36: 87.7555263 | L36: 144.31 | M36: 28.75 | N36: 17.67 | O36: 0 | P36: 97.89 | Q36: 126.64 | R36: 113.976 | S36: 0 | T36: 30.334
A37: A | B37: 36 | C37: 90 | D37: 6 | E37: 15 | F37: 0.5 | G37: 4.649712425 | H37: 0 | I37: 19.9223893 | J37: 75.42789827 | K37: 95.35028758 | L37: 144.31 | M37: 28.75 | N37: 6.71 | O37: 0 | P37: 108.85 | Q37: 137.6 | R37: 123.84 | S37: 0 | T37: 20.47
A38: A | B38: 36 | C38: 90 | D38: 12 | E38: 30 | F38: 0.5 | G38: 0.8038250987 | H38: 0 | I38: 19.9223893 | J38: 79.2737856 | K38: 99.1961749 | L38: 144.31 | M38: 28.75 | N38: 1.16 | O38: 0 | P38: 114.4 | Q38: 143.15 | R38: 128.835 | S38: 0 | T38: 15.475
A39: A | B39: 36 | C39: 90 | D39: 18 | E39: 45 | F39: 0.5 | G39: 0.1385905343 | H39: 0 | I39: 19.9223893 | J39: 79.93902016 | K39: 99.86140947 | L39: 144.31 | M39: 28.75 | N39: 0.2 | O39: 0 | P39: 115.36 | Q39: 144.11 | R39: 129.699 | S39: 0 | T39: 14.611
A40: A | B40: 9 | C40: 23 | D40: NO IWS | E40: NO IWS | F40: 1 | G40: 25.79787234 | H40: 3.147163121 | I40: 15.94082447 | J40: 55.11414007 | K40: 71.05496454 | L40: 180.48 | M40: 28.77 | N40: 46.56 | O40: 5.68 | P40: 99.47 | Q40: 128.24 | R40: 115.416 | S40: 6.248 | T40: 58.816
A41: A | B41: 12 | C41: 30 | D41: NO IWS | E41: NO IWS | F41: 1 | G41: 26.51263298 | H41: 1.667774823 | I41: 15.93528369 | J41: 55.88430851 | K41: 71.8195922 | L41: 180.48 | M41: 28.76 | N41: 47.85 | O41: 3.01 | P41: 100.86 | Q41: 129.62 | R41: 116.658 | S41: 3.311 | T41: 60.511
A42: A | B42: 18 | C42: 45 | D42: NO IWS | E42: NO IWS | F42: 1 | G42: 26.72318262 | H42: 0.4598847518 | I42: 15.92974291 | J42: 56.88718972 | K42: 72.81693262 | L42: 180.48 | M42: 28.75 | N42: 48.23 | O42: 0.83 | P42: 102.67 | Q42: 131.42 | R42: 118.278 | S42: 0.913 | T42: 61.289
A43: A | B43: 18 | C43: 45 | D43: 3 | E43: 7.5 | F43: 1 | G43: 17.42575355 | H43: 0.4321808511 | I43: 15.92974291 | J43: 66.2123227 | K43: 82.1420656 | L43: 180.48 | M43: 28.75 | N43: 31.45 | O43: 0.78 | P43: 119.5 | Q43: 148.25 | R43: 133.425 | S43: 0.858 | T43: 46.197
A44: A | B44: 18 | C44: 45 | D44: 6 | E44: 15 | F44: 1 | G44: 7.79587766 | H44: 0.4321808511 | I44: 15.92974291 | J44: 75.84219858 | K44: 91.77194149 | L44: 180.48 | M44: 28.75 | N44: 14.07 | O44: 0.78 | P44: 136.88 | Q44: 165.63 | R44: 149.067 | S44: 0.858 | T44: 30.555
A45: A | B45: 24 | C45: 60 | D45: NO IWS | E45: NO IWS | F45: 1 | G45: 26.75088652 | H45: 0.05540780142 | I45: 15.92974291 | J45: 57.26396277 | K45: 73.19370567 | L45: 180.48 | M45: 28.75 | N45: 48.28 | O45: 0.1 | P45: 103.35 | Q45: 132.1 | R45: 118.89 | S45: 0.11 | T45: 61.48
A46: A | B46: 24 | C46: 60 | D46: 3 | E46: 7.5 | F46: 1 | G46: 14.68306738 | H46: 0.04986702128 | I46: 15.92974291 | J46: 69.3373227 | K46: 85.2670656 | L46: 180.48 | M46: 28.75 | N46: 26.5 | O46: 0.09 | P46: 125.14 | Q46: 153.89 | R46: 138.501 | S46: 0.099 | T46: 41.88
A47: A | B47: 24 | C47: 60 | D47: 6 | E47: 15 | F47: 1 | G47: 7.751551418 | H47: 0.04432624113 | I47: 15.92974291 | J47: 76.27437943 | K47: 92.20412234 | L47: 180.48 | M47: 28.75 | N47: 13.99 | O47: 0.08 | P47: 137.66 | Q47: 166.41 | R47: 149.769 | S47: 0.088 | T47: 30.623
A48: A | B48: 24 | C48: 60 | D48: 12 | E48: 30 | F48: 1 | G48: 1.54587766 | H48: 0.08311170213 | I48: 15.92974291 | J48: 82.44126773 | K48: 98.37101064 | L48: 180.48 | M48: 28.75 | N48: 2.79 | O48: 0.15 | P48: 148.79 | Q48: 177.54 | R48: 159.786 | S48: 0.165 | T48: 20.529
A49: A | B49: 36 | C49: 90 | D49: NO IWS | E49: NO IWS | F49: 1 | G49: 26.83953901 | H49: 0 | I49: 15.92974291 | J49: 57.23071809 | K49: 73.16046099 | L49: 180.48 | M49: 28.75 | N49: 48.44 | O49: 0 | P49: 103.29 | Q49: 132.04 | R49: 118.836 | S49: 0 | T49: 61.644
A50: A | B50: 36 | C50: 90 | D50: 3 | E50: 7.5 | F50: 1 | G50: 17.50886525 | H50: 0 | I50: 15.92974291 | J50: 66.56139184 | K50: 82.49113475 | L50: 180.48 | M50: 28.75 | N50: 31.6 | O50: 0 | P50: 120.13 | Q50: 148.88 | R50: 133.992 | S50: 0 | T50: 46.488
A51: A | B51: 36 | C51: 90 | D51: 6 | E51: 15 | F51: 1 | G51: 7.80695922 | H51: 0 | I51: 15.92974291 | J51: 76.26329787 | K51: 92.19304078 | L51: 180.48 | M51: 28.75 | N51: 14.09 | O51: 0 | P51: 137.64 | Q51: 166.39 | R51: 149.751 | S51: 0 | T51: 30.729
A52: A | B52: 36 | C52: 90 | D52: 12 | E52: 30 | F52: 1 | G52: 1.601285461 | H52: 0 | I52: 15.92974291 | J52: 82.46897163 | K52: 98.39871454 | L52: 180.48 | M52: 28.75 | N52: 2.89 | O52: 0 | P52: 148.84 | Q52: 177.59 | R52: 159.831 | S52: 0 | T52: 20.649
A53: A | B53: 36 | C53: 90 | D53: 18 | E53: 45 | F53: 1 | G53: 0.4654255319 | H53: 0 | I53: 15.92974291 | J53: 83.60483156 | K53: 99.53457447 | L53: 180.48 | M53: 28.75 | N53: 0.84 | O53: 0 | P53: 150.89 | Q53: 179.64 | R53: 161.676 | S53: 0 | T53: 18.804
A54: A | B54: 9 | C54: 23 | D54: NO IWS | E54: NO IWS | F54: 2 | G54: 31.124911 | H54: 7.531049759 | I54: 11.39545922 | J54: 49.94858002 | K54: 61.34403924 | L54: 252.82 | M54: 28.81 | N54: 78.69 | O54: 19.04 | P54: 126.28 | Q54: 155.09 | R54: 139.581 | S54: 20.944 | T54: 92.295
A55: A | B55: 12 | C55: 30 | D55: NO IWS | E55: NO IWS | F55: 2 | G55: 32.68333201 | H55: 4.271813939 | I55: 11.3756823 | J55: 51.66917174 | K55: 63.04485405 | L55: 252.82 | M55: 28.76 | N55: 82.63 | O55: 10.8 | P55: 130.63 | Q55: 159.39 | R55: 143.451 | S55: 11.88 | T55: 97.489
A56: A | B56: 18 | C56: 45 | D56: NO IWS | E56: NO IWS | F56: 2 | G56: 33.40321177 | H56: 1.752234792 | I56: 11.3756823 | J56: 53.46887113 | K56: 64.84455344 | L56: 252.82 | M56: 28.76 | N56: 84.45 | O56: 4.43 | P56: 135.18 | Q56: 163.94 | R56: 147.546 | S56: 4.873 | T56: 100.401
A57: A | B57: 18 | C57: 45 | D57: 3 | E57: 7.5 | F57: 2 | G57: 24.87936081 | H57: 1.692904042 | I57: 11.3756823 | J57: 62.05205284 | K57: 73.42773515 | L57: 252.82 | M57: 28.76 | N57: 62.9 | O57: 4.28 | P57: 156.88 | Q57: 185.64 | R57: 167.076 | S57: 4.708 | T57: 81.036
A58: A | B58: 18 | C58: 45 | D58: 6 | E58: 15 | F58: 2 | G58: 13.31777549 | H58: 1.661260976 | I58: 11.3756823 | J58: 73.64528123 | K58: 85.02096353 | L58: 252.82 | M58: 28.76 | N58: 33.67 | O58: 4.2 | P58: 186.19 | Q58: 214.95 | R58: 193.455 | S58: 4.62 | T58: 54.745
A59: A | B59: 24 | C59: 60 | D59: NO IWS | E59: NO IWS | F59: 2 | G59: 33.59702555 | H59: 0.8068981884 | I59: 11.37172692 | J59: 54.22434934 | K59: 65.59607626 | L59: 252.82 | M59: 28.75 | N59: 84.94 | O59: 2.04 | P59: 137.09 | Q59: 165.84 | R59: 149.256 | S59: 2.244 | T59: 101.32
A60: A | B60: 24 | C60: 60 | D60: 3 | E60: 7.5 | F60: 2 | G60: 22.16992327 | H60: 0.7712997389 | I60: 11.37172692 | J60: 65.68705008 | K60: 77.058777 | L60: 252.82 | M60: 28.75 | N60: 56.05 | O60: 1.95 | P60: 166.07 | Q60: 194.82 | R60: 175.338 | S60: 2.145 | T60: 75.337
A61: A | B61: 24 | C61: 60 | D61: 6 | E61: 15 | F61: 2 | G61: 13.38501701 | H61: 0.7594335891 | I61: 11.37172692 | J61: 74.48382248 | K61: 85.8555494 | L61: 252.82 | M61: 28.75 | N61: 33.84 | O61: 1.92 | P61: 188.31 | Q61: 217.06 | R61: 195.354 | S61: 2.112 | T61: 55.354
A62: A | B62: 24 | C62: 60 | D62: 12 | E62: 30 | F62: 2 | G62: 3.484692667 | H62: 0.8108535717 | I62: 11.37172692 | J62: 84.33272684 | K62: 95.70445376 | L62: 252.82 | M62: 28.75 | N62: 8.81 | O62: 2.05 | P62: 213.21 | Q62: 241.96 | R62: 217.764 | S62: 2.255 | T62: 32.801
A63: A | B63: 36 | C63: 90 | D63: NO IWS | E63: NO IWS | F63: 2 | G63: 33.82643778 | H63: 0.07119689898 | I63: 11.37172692 | J63: 54.7306384 | K63: 66.10236532 | L63: 252.82 | M63: 28.75 | N63: 85.52 | O63: 0.18 | P63: 138.37 | Q63: 167.12 | R63: 150.408 | S63: 0.198 | T63: 102.214
A64: A | B64: 36 | C64: 90 | D64: 3 | E64: 7.5 | F64: 2 | G64: 25.24721145 | H64: 0.07119689898 | I64: 11.37172692 | J64: 63.30986473 | K64: 74.68159165 | L64: 252.82 | M64: 28.75 | N64: 63.83 | O64: 0.18 | P64: 160.06 | Q64: 188.81 | R64: 169.929 | S64: 0.198 | T64: 82.693
A65: A | B65: 36 | C65: 90 | D65: 6 | E65: 15 | F65: 2 | G65: 13.57487541 | H65: 0.07119689898 | I65: 11.37172692 | J65: 74.98220078 | K65: 86.3539277 | L65: 252.82 | M65: 28.75 | N65: 34.32 | O65: 0.18 | P65: 189.57 | Q65: 218.32 | R65: 196.488 | S65: 0.198 | T65: 56.134
A66: A | B66: 36 | C66: 90 | D66: 12 | E66: 30 | F66: 2 | G66: 3.631041848 | H66: 0.0672415157 | I66: 11.37172692 | J66: 84.92998972 | K66: 96.30171664 | L66: 252.82 | M66: 28.75 | N66: 9.18 | O66: 0.17 | P66: 214.72 | Q66: 243.47 | R66: 219.123 | S66: 0.187 | T66: 33.51
A67: A | B67: 36 | C67: 90 | D67: 18 | E67: 45 | F67: 2 | G67: 1.087730401 | H67: 0.09492919864 | I67: 11.37172692 | J67: 87.44561348 | K67: 98.8173404 | L67: 252.82 | M67: 28.75 | N67: 2.75 | O67: 0.24 | P67: 221.08 | Q67: 249.83 | R67: 224.847 | S67: 0.264 | T67: 27.709
A68: A | B68: 9 | C68: 23 | D68: NO IWS | E68: NO IWS | F68: 4 | G68: 33.38113208 | H68: 17.68553459 | I68: 7.252830189 | J68: 41.68050314 | K68: 48.93333333 | L68: 397.5 | M68: 28.83 | N68: 132.69 | O68: 70.3 | P68: 165.68 | Q68: 194.51 | R68: 175.059 | S68: 77.33 | T68: 145.111
A69: A | B69: 12 | C69: 30 | D69: NO IWS | E69: NO IWS | F69: 4 | G69: 36.04025157 | H69: 11.77106918 | I69: 7.247798742 | J69: 44.9408805 | K69: 52.18867925 | L69: 397.5 | M69: 28.81 | N69: 143.26 | O69: 46.79 | P69: 178.64 | Q69: 207.45 | R69: 186.705 | S69: 51.469 | T69: 159.326
A70: A | B70: 18 | C70: 45 | D70: NO IWS | E70: NO IWS | F70: 4 | G70: 38.11572327 | H70: 5.534591195 | I70: 7.237735849 | J70: 49.11194969 | K70: 56.34968553 | L70: 397.5 | M70: 28.77 | N70: 151.51 | O70: 22 | P70: 195.22 | Q70: 223.99 | R70: 201.591 | S70: 24.2 | T70: 171.709
A71: A | B71: 18 | C71: 45 | D71: 3 | E71: 7.5 | F71: 4 | G71: 31.58238994 | H71: 5.406289308 | I71: 7.240251572 | J71: 55.77106918 | K71: 63.01132075 | L71: 397.5 | M71: 28.78 | N71: 125.54 | O71: 21.49 | P71: 221.69 | Q71: 250.47 | R71: 225.423 | S71: 23.639 | T71: 148.438
A72: A | B72: 18 | C72: 45 | D72: 6 | E72: 15 | F72: 4 | G72: 20.27421384 | H72: 5.388679245 | I72: 7.237735849 | J72: 67.09937107 | K72: 74.33710692 | L72: 397.5 | M72: 28.77 | N72: 80.59 | O72: 21.42 | P72: 266.72 | Q72: 295.49 | R72: 265.941 | S72: 23.562 | T72: 107.997
A73: A | B73: 24 | C73: 60 | D73: NO IWS | E73: NO IWS | F73: 4 | G73: 38.75974843 | H73: 3.08427673 | I73: 7.235220126 | J73: 50.92075472 | K73: 58.15597484 | L73: 397.5 | M73: 28.76 | N73: 154.07 | O73: 12.26 | P73: 202.41 | Q73: 231.17 | R73: 208.053 | S73: 13.486 | T73: 175.961
A74: A | B74: 24 | C74: 60 | D74: 3 | E74: 7.5 | F74: 4 | G74: 29.76100629 | H74: 2.988679245 | I74: 7.235220126 | J74: 60.01509434 | K74: 67.25031447 | L74: 397.5 | M74: 28.76 | N74: 118.3 | O74: 11.88 | P74: 238.56 | Q74: 267.32 | R74: 240.588 | S74: 13.068 | T74: 143.844
A75: A | B75: 24 | C75: 60 | D75: 6 | E75: 15 | F75: 4 | G75: 20.74716981 | H75: 2.973584906 | I75: 7.235220126 | J75: 69.04402516 | K75: 76.27924528 | L75: 397.5 | M75: 28.76 | N75: 82.47 | O75: 11.82 | P75: 274.45 | Q75: 303.21 | R75: 272.889 | S75: 13.002 | T75: 111.609
A76: A | B76: 24 | C76: 60 | D76: 12 | E76: 30 | F76: 4 | G76: =N76/L76*100 -> 7.698113208 | H76: =O76/L76*100 -> 3.05408805 | I76: =M76/L76*100 -> 7.235220126 | J76: =100-G76-H76-I76 -> 82.01257862 | K76: 89.24779874 | L76: 397.5 | M76: 28.76 | N76: 30.6 | O76: 12.14 | P76: 326 | Q76: 354.76 | R76: 319.284 | S76: 13.354 | T76: 64.862
A77: A | B77: 36 | C77: 90 | D77: NO IWS | E77: NO IWS | F77: 4 | G77: 39.22767296 | H77: 1.194968553 | I77: 7.232704403 | J77: 52.34465409 | K77: =I77+J77 -> 59.57735849 | L77: 397.5 | M77: 28.75 | N77: 155.93 | O77: 4.75 | P77: 208.07 | Q77: =M77+P77 -> 236.82 | R77: =Q77*0.9 -> 213.138 | S77: =O77*1.1 -> 5.225 | T77: =L77-(R77+S77) -> 179.137
A78: A | B78: 36 | C78: 90 | D78: 3 | E78: 7.5 | F78: 4 | G78: 32.62138365 | H78: 1.177358491 | I78: 7.232704403 | J78: 58.96855346 | K78: 66.20125786 | L78: 397.5 | M78: 28.75 | N78: 129.67 | O78: 4.68 | P78: 234.4 | Q78: 263.15 | R78: 236.835 | S78: 5.148 | T78: 155.517
A79: A | B79: 36 | C79: 90 | D79: 6 | E79: 15 | F79: 4 | G79: 21.16226415 | H79: 1.169811321 | I79: 7.232704403 | J79: 70.43522013 | K79: 77.66792453 | L79: 397.5 | M79: 28.75 | N79: 84.12 | O79: 4.65 | P79: 279.98 | Q79: 308.73 | R79: 277.857 | S79: 5.115 | T79: 114.528
A80: A | B80: 36 | C80: 90 | D80: 12 | E80: 30 | F80: 4 | G80: 8.13081761 | H80: 1.187421384 | I80: 7.232704403 | J80: 83.4490566 | K80: 90.68176101 | L80: 397.5 | M80: 28.75 | N80: 32.32 | O80: 4.72 | P80: 331.71 | Q80: 360.46 | R80: 324.414 | S80: 5.192 | T80: 67.894
A81: A | B81: 36 | C81: 90 | D81: 18 | E81: 45 | F81: 4 | G81: 3.152201258 | H81: 1.187421384 | I81: 7.232704403 | J81: 88.42767296 | K81: 95.66037736 | L81: 397.5 | M81: 28.75 | N81: 12.53 | O81: 4.72 | P81: 351.5 | Q81: 380.25 | R81: 342.225 | S81: 5.192 | T81: 50.083
A82: B | B82: 9 | C82: 23 | D82: NO IWS | E82: NO IWS | F82: 0 | G82: 55.77032868 | H82: 1.386510073 | I82: 23.47279993 | J82: 19.37036131 | K82: 42.84316124 | L82: 108.14 | M82: 25.38348585 | N82: 60.31003344 | O82: 1.499371992 | P82: 20.94710872 | Q82: 46.33059457 | R82: 41.69753511 | S82: 1.649309192 | T82: 64.7931557
A83: B | B83: 12 | C83: 30 | D83: NO IWS | E83: NO IWS | F83: 0 | G83: 56.45542778 | H83: 0.6280075035 | I83: 23.44833211 | J83: 19.46823261 | K83: 42.91656472 | L83: 108.14 | M83: 25.35702634 | N83: 61.0508996 | O83: 0.6791273142 | P83: 21.05294674 | Q83: 46.40997309 | R83: 41.76897578 | S83: 0.7470400457 | T83: 65.62398418
A84: B | B84: 18 | C84: 45 | D84: NO IWS | E84: NO IWS | F84: 0 | G84: 56.70010603 | H84: 0.02446782481 | I84: 23.44833211 | J84: 19.82709404 | K84: 43.27542615 | L84: 108.14 | M84: 25.35702634 | N84: 61.31549466 | O84: 0.02645950575 | P84: 21.44101949 | Q84: 46.79804584 | R84: 42.11824125 | S84: 0.02910545632 | T84: 65.99265329
A85: B | B85: 18 | C85: 45 | D85: 3 | E85: 7.5 | F85: 0 | G85: 35.73118016 | H85: 0.04893564962 | I85: 23.44833211 | J85: 40.77155208 | K85: 64.21988419 | L85: 108.14 | M85: 25.35702634 | N85: 38.63969823 | O85: 0.0529190115 | P85: 44.09035641 | Q85: 69.44738276 | R85: 62.50264448 | S85: 0.05821091265 | T85: 45.5791446
A86: B | B86: 18 | C86: 45 | D86: 6 | E86: 15 | F86: 0 | G86: 17.08669766 | H86: 0.05709159122 | I86: 23.44833211 | J86: 59.40787864 | K86: 82.85621075 | L86: 108.14 | M86: 25.35702634 | N86: 18.47755485 | O86: 0.06173884675 | P86: 64.24367996 | Q86: 89.6007063 | R86: 80.64063567 | S86: 0.06791273142 | T86: 27.43145159
A87: B | B87: 24 | C87: 60 | D87: NO IWS | E87: NO IWS | F87: 0 | G87: 56.61854661 | H87: 0 | I87: 23.44833211 | J87: 19.93312128 | K87: 43.38145339 | L87: 108.14 | M87: 25.35702634 | N87: 61.22729631 | O87: 0 | P87: 21.55567735 | Q87: 46.91270369 | R87: 42.22143333 | S87: 0 | T87: 65.91856667
A88: B | B88: 24 | C88: 60 | D88: 3 | E88: 7.5 | F88: 0 | G88: 35.60884104 | H88: 0 | I88: 23.44833211 | J88: 40.94282685 | K88: 64.39115896 | L88: 108.14 | M88: 25.35702634 | N88: 38.5074007 | O88: 0 | P88: 44.27557295 | Q88: 69.6325993 | R88: 62.66933937 | S88: 0 | T88: 45.47066063
A89: B | B89: 24 | C89: 60 | D89: 6 | E89: 15 | F89: 0 | G89: 16.87464318 | H89: 0 | I89: 23.44833211 | J89: 59.67702471 | K89: 83.12535682 | L89: 108.14 | M89: 25.35702634 | N89: 18.24823913 | O89: 0 | P89: 64.53473452 | Q89: 89.89176087 | R89: 80.90258478 | S89: 0 | T89: 27.23741522
A90: B | B90: 24 | C90: 60 | D90: 12 | E90: 30 | F90: 0 | G90: 3.091101868 | H90: 0 | I90: 23.44833211 | J90: 73.46056602 | K90: 96.90889813 | L90: 108.14 | M90: 25.35702634 | N90: 3.34271756 | O90: 0 | P90: 79.4402561 | Q90: 104.7972824 | R90: 94.3175542 | S90: 0 | T90: 13.8224458
A91: B | B91: 36 | C91: 90 | D91: NO IWS | E91: NO IWS | F91: 0 | G91: 56.79797733 | H91: 0 | I91: 23.44833211 | J91: 19.75369056 | K91: 43.20202267 | L91: 108.14 | M91: 25.35702634 | N91: 61.42133268 | O91: 0 | P91: 21.36164098 | Q91: 46.71866732 | R91: 42.04680059 | S91: 0 | T91: 66.09319941
A92: B | B92: 36 | C92: 90 | D92: 3 | E92: 7.5 | F92: 0 | G92: 35.75564799 | H92: 0 | I92: 23.44833211 | J92: 40.7960199 | K92: 64.24435201 | L92: 108.14 | M92: 25.35702634 | N92: 38.66615774 | O92: 0 | P92: 44.11681592 | Q92: 69.47384226 | R92: 62.52645804 | S92: 0 | T92: 45.61354196
A93: B | B93: 36 | C93: 90 | D93: 6 | E93: 15 | F93: 0 | G93: 16.9969823 | H93: 0 | I93: 23.44833211 | J93: 59.55468559 | K93: 83.0030177 | L93: 108.14 | M93: 25.35702634 | N93: 18.38053666 | O93: 0 | P93: 64.402437 | Q93: 89.75946334 | R93: 80.78351701 | S93: 0 | T93: 27.35648299
A94: B | B94: 36 | C94: 90 | D94: 12 | E94: 30 | F94: 0 | G94: 3.140037517 | H94: 0 | I94: 23.44833211 | J94: 73.41163037 | K94: 96.85996248 | L94: 108.14 | M94: 25.35702634 | N94: 3.395636571 | O94: 0 | P94: 79.38733709 | Q94: 104.7443634 | R94: 94.26992709 | S94: 0 | T94: 13.87007291
A95: B | B95: 36 | C95: 90 | D95: 18 | E95: 45 | F95: 0 | G95: 0.8482179268 | H95: 0 | I95: 23.44833211 | J95: 75.70344996 | K95: 99.15178207 | L95: 108.14 | M95: 25.35702634 | N95: 0.917262866 | O95: 0 | P95: 81.86571079 | Q95: 107.2227371 | R95: 96.50046342 | S95: 0 | T95: 11.63953658
A96: B | B96: 9 | C96: 23 | D96: NO IWS | E96: NO IWS | F96: 0.5 | G96: 59.85032222 | H96: 2.42533435 | I96: 19.95703693 | J96: 17.76730649 | K96: 37.72434343 | L96: 144.31 | M96: 28.8 | N96: 86.37 | O96: 3.5 | P96: 25.64 | Q96: 54.44 | R96: 48.996 | S96: 3.85 | T96: 91.464
A97: B | B97: 12 | C97: 30 | D97: NO IWS | E97: NO IWS | F97: 0.5 | G97: 60.92439886 | H97: 1.240385282 | I97: 19.92931883 | J97: 17.90589703 | K97: 37.83521585 | L97: 144.31 | M97: 28.76 | N97: 87.92 | O97: 1.79 | P97: 25.84 | Q97: 54.6 | R97: 49.14 | S97: 1.969 | T97: 93.201
A98: B | B98: 18 | C98: 45 | D98: NO IWS | E98: NO IWS | F98: 0.5 | G98: 61.49954958 | H98: 0.2841105952 | I98: 19.9223893 | J98: 18.29395052 | K98: 38.21633982 | L98: 144.31 | M98: 28.75 | N98: 88.75 | O98: 0.41 | P98: 26.4 | Q98: 55.15 | R98: 49.635 | S98: 0.451 | T98: 94.224
A99: B | B99: 18 | C99: 45 | D99: 3 | E99: 7.5 | F99: 0.5 | G99: 42.41563301 | H99: 0.3118287021 | I99: 19.9223893 | J99: 37.35014898 | K99: 57.27253829 | L99: 144.31 | M99: 28.75 | N99: 61.21 | O99: 0.45 | P99: 53.9 | Q99: 82.65 | R99: 74.385 | S99: 0.495 | T99: 69.43
A100: B | B100: 18 | C100: 45 | D100: 6 | E100: 15 | F100: 0.5 | G100: 23.14461922 | H100: 0.339546809 | I100: 19.9223893 | J100: 56.59344467 | K100: 76.51583397 | L100: 144.31 | M100: 28.75 | N100: 33.4 | O100: 0.49 | P100: 81.67 | Q100: 110.42 | R100: 99.378 | S100: 0.539 | T100: 44.393
A101: B | B101: 24 | C101: 60 | D101: NO IWS | E101: NO IWS | F101: 0.5 | G101: 61.62428106 | H101: 0.006929526713 | I101: 19.9223893 | J101: 18.44640011 | K101: 38.36878941 | L101: 144.31 | M101: 28.75 | N101: 88.93 | O101: 0.01 | P101: 26.62 | Q101: 55.37 | R101: 49.833 | S101: 0.011 | T101: 94.466
A102: B | B102: 24 | C102: 60 | D102: 3 | E102: 7.5 | F102: 0.5 | G102: 42.49878733 | H102: 0.01385905343 | I102: 19.9223893 | J102: 37.56496431 | K102: 57.48735361 | L102: 144.31 | M102: 28.75 | N102: 61.33 | O102: 0.02 | P102: 54.21 | Q102: 82.96 | R102: 74.664 | S102: 0.022 | T102: 69.624
A103: B | B103: 24 | C103: 60 | D103: 6 | E103: 15 | F103: 0.5 | G103: 23.08225348 | H103: 0.02078858014 | I103: 19.9223893 | J103: 56.97456864 | K103: 76.89695794 | L103: 144.31 | M103: 28.75 | N103: 33.31 | O103: 0.03 | P103: 82.22 | Q103: 110.97 | R103: 99.873 | S103: 0.033 | T103: 44.404
A104: B | B104: 24 | C104: 60 | D104: 12 | E104: 30 | F104: 0.5 | G104: 5.349594623 | H104: 0.06929526713 | I104: 19.9223893 | J104: 74.65872081 | K104: 94.58111011 | L104: 144.31 | M104: 28.75 | N104: 7.72 | O104: 0.1 | P104: 107.74 | Q104: 136.49 | R104: 122.841 | S104: 0.11 | T104: 21.359
A105: B | B105: 36 | C105: 90 | D105: NO IWS | E105: NO IWS | F105: 0.5 | G105: 61.7905897 | H105: 0 | I105: 19.9223893 | J105: 18.287021 | K105: 38.2094103 | L105: 144.31 | M105: 28.75 | N105: 89.17 | O105: 0 | P105: 26.39 | Q105: 55.14 | R105: 49.626 | S105: 0 | T105: 94.684
A106: B | B106: 36 | C106: 90 | D106: 3 | E106: 7.5 | F106: 0.5 | G106: 42.63737787 | H106: 0 | I106: 19.9223893 | J106: 37.44023283 | K106: 57.36262213 | L106: 144.31 | M106: 28.75 | N106: 61.53 | O106: 0 | P106: 54.03 | Q106: 82.78 | R106: 74.502 | S106: 0 | T106: 69.808
A107: B | B107: 36 | C107: 90 | D107: 6 | E107: 15 | F107: 0.5 | G107: 23.20698496 | H107: 0 | I107: 19.9223893 | J107: 56.87062574 | K107: 76.79301504 | L107: 144.31 | M107: 28.75 | N107: 33.49 | O107: 0 | P107: 82.07 | Q107: 110.82 | R107: 99.738 | S107: 0 | T107: 44.572
A108: B | B108: 36 | C108: 90 | D108: 12 | E108: 30 | F108: 0.5 | G108: 5.335735569 | H108: 0 | I108: 19.9223893 | J108: 74.74187513 | K108: 94.66426443 | L108: 144.31 | M108: 28.75 | N108: 7.7 | O108: 0 | P108: 107.86 | Q108: 136.61 | R108: 122.949 | S108: 0 | T108: 21.361
A109: B | B109: 36 | C109: 90 | D109: 18 | E109: 45 | F109: 0.5 | G109: 1.732381678 | H109: 0 | I109: 19.9223893 | J109: 78.34522902 | K109: 98.26761832 | L109: 144.31 | M109: 28.75 | N109: 2.5 | O109: 0 | P109: 113.06 | Q109: 141.81 | R109: 127.629 | S109: 0 | T109: 16.681
A110: B | B110: 9 | C110: 23 | D110: NO IWS | E110: NO IWS | F110: 1 | G110: 63.55828901 | H110: 4.759530142 | I110: 15.97406915 | J110: 15.7081117 | K110: 31.68218085 | L110: 180.48 | M110: 28.83 | N110: 114.71 | O110: 8.59 | P110: 28.35 | Q110: 57.18 | R110: 51.462 | S110: 9.449 | T110: 119.569
A111: B | B111: 12 | C111: 30 | D111: NO IWS | E111: NO IWS | F111: 1 | G111: 65.53080674 | H111: 2.587544326 | I111: 15.94636525 | J111: 15.93528369 | K111: 31.88164894 | L111: 180.48 | M111: 28.78 | N111: 118.27 | O111: 4.67 | P111: 28.76 | Q111: 57.54 | R111: 51.786 | S111: 5.137 | T111: 123.557
A112: B | B112: 18 | C112: 45 | D112: NO IWS | E112: NO IWS | F112: 1 | G112: 66.64450355 | H112: 1.047207447 | I112: 15.92974291 | J112: 16.3785461 | K112: 32.30828901 | L112: 180.48 | M112: 28.75 | N112: 120.28 | O112: 1.89 | P112: 29.56 | Q112: 58.31 | R112: 52.479 | S112: 2.079 | T112: 125.922
A113: B | B113: 18 | C113: 45 | D113: 3 | E113: 7.5 | F113: 1 | G113: 50.26595745 | H113: 1.074911348 | I113: 15.92974291 | J113: 32.7293883 | K113: 48.65913121 | L113: 180.48 | M113: 28.75 | N113: 90.72 | O113: 1.94 | P113: 59.07 | Q113: 87.82 | R113: 79.038 | S113: 2.134 | T113: 99.308
A114: B | B114: 18 | C114: 45 | D114: 6 | E114: 15 | F114: 1 | G114: 31.01174645 | H114: 1.135859929 | I114: 15.92974291 | J114: 51.92265071 | K114: 67.85239362 | L114: 180.48 | M114: 28.75 | N114: 55.97 | O114: 2.05 | P114: 93.71 | Q114: 122.46 | R114: 110.214 | S114: 2.255 | T114: 68.011
A115: B | B115: 24 | C115: 60 | D115: NO IWS | E115: NO IWS | F115: 1 | G115: 67.14317376 | H115: 0.3379875887 | I115: 15.92974291 | J115: 16.58909574 | K115: 32.51883865 | L115: 180.48 | M115: 28.75 | N115: 121.18 | O115: 0.61 | P115: 29.94 | Q115: 58.69 | R115: 52.821 | S115: 0.671 | T115: 126.988
A116: B | B116: 24 | C116: 60 | D116: 3 | E116: 7.5 | F116: 1 | G116: 50.6981383 | H116: 0.3656914894 | I116: 15.92974291 | J116: 33.0064273 | K116: 48.93617021 | L116: 180.48 | M116: 28.75 | N116: 91.5 | O116: 0.66 | P116: 59.57 | Q116: 88.32 | R116: 79.488 | S116: 0.726 | T116: 100.266
A117: B | B117: 24 | C117: 60 | D117: 6 | E117: 15 | F117: 1 | G117: 31.27216312 | H117: 0.4044769504 | I117: 15.92974291 | J117: 52.39361702 | K117: 68.32335993 | L117: 180.48 | M117: 28.75 | N117: 56.44 | O117: 0.73 | P117: 94.56 | Q117: 123.31 | R117: 110.979 | S117: 0.803 | T117: 68.698
A118: B | B118: 24 | C118: 60 | D118: 12 | E118: 30 | F118: 1 | G118: 9.341755319 | H118: 0.548537234 | I118: 15.92974291 | J118: =100-G118-H118-I118 -> 74.17996454 | K118: 90.10970745 | L118: 180.48 | M118: 28.75 | N118: 16.86 | O118: 0.99 | P118: 133.88 | Q118: 162.63 | R118: 146.367 | S118: 1.089 | T118: 33.024
A119: B | B119: 36 | C119: 90 | D119: NO IWS | E119: NO IWS | F119: 1 | G119: 67.52548759 | H119: 0 | I119: 15.92974291 | J119: =100-G119-H119-I119 -> 16.5447695 | K119: 32.47451241 | L119: 180.48 | M119: 28.75 | N119: 121.87 | O119: 0 | P119: 29.86 | Q119: 58.61 | R119: 52.749 | S119: 0 | T119: 127.731
A120: B | B120: 36 | C120: 90 | D120: 3 | E120: 7.5 | F120: 1 | G120: 51.08599291 | H120: 0 | I120: 15.92974291 | J120: =100-G120-H120-I120 -> 32.98426418 | K120: 48.91400709 | L120: 180.48 | M120: 28.75 | N120: 92.2 | O120: 0 | P120: 59.53 | Q120: 88.28 | R120: 79.452 | S120: 0 | T120: 101.028
A121: B | B121: 36 | C121: 90 | D121: 6 | E121: 15 | F121: 1 | G121: 31.66555851 | H121: 0 | I121: 15.92974291 | J121: =100-G121-H121-I121 -> 52.40469858 | K121: 68.33444149 | L121: 180.48 | M121: 28.75 | N121: 57.15 | O121: 0 | P121: 94.58 | Q121: 123.33 | R121: 110.997 | S121: 0 | T121: 69.483
A122: B | B122: 36 | C122: 90 | D122: 12 | E122: 30 | F122: 1 | G122: 9.696365248 | H122: 0.01662234043 | I122: 15.92974291 | J122: 74.3572695 | K122: 90.28701241 | L122: 180.48 | M122: 28.75 | N122: 17.5 | O122: 0.03 | P122: 134.2 | Q122: 162.95 | R122: 146.655 | S122: 0.033 | T122: 33.792
A123: B | B123: 36 | C123: 90 | D123: 18 | E123: 45 | F123: 1 | G123: 3.446365248 | H123: 0.01662234043 | I123: 15.92974291 | J123: 80.6072695 | K123: 96.53701241 | L123: 180.48 | M123: 28.75 | N123: 6.22 | O123: 0.03 | P123: 145.48 | Q123: 174.23 | R123: 156.807 | S123: 0.033 | T123: 23.64
A124: B | B124: 9 | C124: 23 | D124: NO IWS | E124: NO IWS | F124: 2 | G124: 64.71798117 | H124: 10.98409936 | I124: 11.40732537 | J124: 12.8905941 | K124: 24.29791947 | L124: 252.82 | M124: 28.84 | N124: 163.62 | O124: 27.77 | P124: 32.59 | Q124: 61.43 | R124: 55.287 | S124: 30.547 | T124: 166.986
A125: B | B125: 12 | C125: 30 | D125: NO IWS | E125: NO IWS | F125: 2 | G125: 68.66940907 | H125: 6.569891622 | I125: 11.3994146 | J125: 13.36128471 | K125: 24.76069931 | L125: 252.82 | M125: 28.82 | N125: 173.61 | O125: 16.61 | P125: 33.78 | Q125: 62.6 | R125: 56.34 | S125: 18.271 | T125: 178.209
A126: B | B126: 18 | C126: 45 | D126: NO IWS | E126: NO IWS | F126: 2 | G126: 71.62803576 | H126: 2.934894391 | I126: 11.38359307 | J126: 14.05347678 | K126: 25.43706985 | L126: 252.82 | M126: 28.78 | N126: 181.09 | O126: 7.42 | P126: 35.53 | Q126: 64.31 | R126: 57.879 | S126: 8.162 | T126: 186.779
A127: B | B127: 18 | C127: 45 | D127: 3 | E127: 7.5 | F127: 2 | G127: 58.95498774 | H127: 2.998180524 | I127: 11.38359307 | J127: 26.66323867 | K127: 38.04683174 | L127: 252.82 | M127: 28.78 | N127: 149.05 | O127: 7.58 | P127: 67.41 | Q127: 96.19 | R127: 86.571 | S127: 8.338 | T127: 157.911
A128: B | B128: 18 | C128: 45 | D128: 6 | E128: 15 | F128: 2 | G128: 42.01012578 | H128: 3.160351238 | I128: 11.38359307 | J128: 43.44592991 | K128: 54.82952298 | L128: 252.82 | M128: 28.78 | N128: 106.21 | O128: 7.99 | P128: 109.84 | Q128: 138.62 | R128: 124.758 | S128: 8.789 | T128: 119.273
A129: B | B129: 24 | C129: 60 | D129: NO IWS | E129: NO IWS | F129: 2 | G129: 72.62479234 | H129: 1.62961791 | I129: 11.37172692 | J129: 14.37386283 | K129: 25.74558975 | L129: 252.82 | M129: 28.75 | N129: 183.61 | O129: 4.12 | P129: 36.34 | Q129: 65.09 | R129: 58.581 | S129: 4.532 | T129: 189.707
A130: B | B130: 24 | C130: 60 | D130: 3 | E130: 7.5 | F130: 2 | G130: 59.92010126 | H130: 1.657305593 | I130: 11.37172692 | J130: 27.05086623 | K130: 38.42259315 | L130: 252.82 | M130: 28.75 | N130: 151.49 | O130: 4.19 | P130: 68.39 | Q130: 97.14 | R130: 87.426 | S130: 4.609 | T130: 160.785
A131: B | B131: 24 | C131: 60 | D131: 6 | E131: 15 | F131: 2 | G131: 42.83680089 | H131: 1.708725576 | I131: 11.3756823 | J131: 44.07879123 | K131: 55.45447354 | L131: 252.82 | M131: 28.76 | N131: 108.3 | O131: 4.32 | P131: 111.44 | Q131: 140.2 | R131: 126.18 | S131: 4.752 | T131: 121.888
A132: B | B132: 24 | C132: 60 | D132: 12 | E132: 30 | F132: 2 | G132: 17.93766316 | H132: 1.993513171 | I132: 11.3756823 | J132: 68.69314137 | K132: 80.06882367 | L132: 252.82 | M132: 28.76 | N132: 45.35 | O132: 5.04 | P132: 173.67 | Q132: 202.43 | R132: 182.187 | S132: 5.544 | T132: 65.089
A133: B | B133: 36 | C133: 90 | D133: NO IWS | E133: NO IWS | F133: 2 | G133: 73.58595048 | H133: 0.4548690768 | I133: 11.37172692 | J133: 14.58745352 | K133: 25.95918044 | L133: 252.82 | M133: 28.75 | N133: 186.04 | O133: 1.15 | P133: 36.88 | Q133: 65.63 | R133: 59.067 | S133: 1.265 | T133: 192.488
A134: B | B134: 36 | C134: 90 | D134: 3 | E134: 7.5 | F134: 2 | G134: 60.87334863 | H134: 0.4706906099 | I134: 11.37172692 | J134: 27.28423384 | K134: 38.65596076 | L134: 252.82 | M134: 28.75 | N134: 153.9 | O134: 1.19 | P134: 68.98 | Q134: 97.73 | R134: 87.957 | S134: 1.309 | T134: 163.554
A135: B | B135: 36 | C135: 90 | D135: 6 | E135: 15 | F135: 2 | G135: 43.80586979 | H135: 0.5102444427 | I135: 11.37172692 | J135: 44.31215885 | K135: 55.68388577 | L135: 252.82 | M135: 28.75 | N135: 110.75 | O135: 1.29 | P135: 112.03 | Q135: 140.78 | R135: 126.702 | S135: 1.419 | T135: 124.699
A136: B | B136: 36 | C136: 90 | D136: 12 | E136: 30 | F136: 2 | G136: 18.83553516 | H136: 0.6209951744 | I136: 11.37172692 | J136: 69.17174274 | K136: 80.54346966 | L136: 252.82 | M136: 28.75 | N136: 47.62 | O136: 1.57 | P136: 174.88 | Q136: 203.63 | R136: 183.267 | S136: 1.727 | T136: 67.826
A137: B | B137: 36 | C137: 90 | D137: 18 | E137: 45 | F137: 2 | G137: 8.013606518 | H137: 0.7159243731 | I137: 11.37172692 | J137: 79.89874219 | K137: 91.27046911 | L137: 252.82 | M137: 28.75 | N137: 20.26 | O137: 1.81 | P137: 202 | Q137: 230.75 | R137: 207.675 | S137: 1.991 | T137: 43.154
A138: B | B138: 9 | C138: 23 | D138: NO IWS | E138: NO IWS | F138: 4 | G138: 59.11949686 | H138: 23.95471698 | I138: 7.277987421 | J138: 9.647798742 | K138: 16.92578616 | L138: 397.5 | M138: 28.93 | N138: 235 | O138: 95.22 | P138: 38.35 | Q138: 67.28 | R138: 60.552 | S138: 104.742 | T138: 232.206
A139: B | B139: 12 | C139: 30 | D139: NO IWS | E139: NO IWS | F139: 4 | G139: 65.28553459 | H139: 17.00125786 | I139: 7.257861635 | J139: 10.45534591 | K139: 17.71320755 | L139: 397.5 | M139: 28.85 | N139: 259.51 | O139: 67.58 | P139: 41.56 | Q139: 70.41 | R139: 63.369 | S139: 74.338 | T139: 259.793
A140: B | B140: 18 | C140: 45 | D140: NO IWS | E140: NO IWS | F140: 4 | G140: =N140/L140*100 -> 71.87924528 | H140: =O140/L140*100 -> 9.104402516 | I140: =M140/L140*100 -> 7.247798742 | J140: 11.76855346 | K140: 19.0163522 | L140: 397.5 | M140: 28.81 | N140: 285.72 | O140: 36.19 | P140: 46.78 | Q140: 75.59 | R140: 68.031 | S140: 39.809 | T140: 289.66
A141: B | B141: 18 | C141: 45 | D141: 3 | E141: 7.5 | F141: 4 | G141: 63.21257862 | H141: 9.265408805 | I141: 7.247798742 | J141: 20.27421384 | K141: =I141+J141 -> 27.52201258 | L141: 397.5 | M141: 28.81 | N141: 251.27 | O141: 36.83 | P141: 80.59 | Q141: =M141+P141 -> 109.4 | R141: =Q141*0.9 -> 98.46 | S141: =O141*1.1 -> 40.513 | T141: =L141-(R141+S141) -> 258.527
A142: B | B142: 18 | C142: 45 | D142: 6 | E142: 15 | F142: 4 | G142: 49.86666667 | H142: 9.831446541 | I142: 7.250314465 | J142: 33.05157233 | K142: 40.30188679 | L142: 397.5 | M142: 28.82 | N142: 198.22 | O142: 39.08 | P142: 131.38 | Q142: 160.2 | R142: 144.18 | S142: 42.988 | T142: 210.332
A143: B | B143: 24 | C143: 60 | D143: NO IWS | E143: NO IWS | F143: 4 | G143: 74.79245283 | H143: 5.421383648 | I143: 7.240251572 | J143: 12.54591195 | K143: 19.78616352 | L143: 397.5 | M143: 28.78 | N143: 297.3 | O143: 21.55 | P143: 49.87 | Q143: 78.65 | R143: 70.785 | S143: 23.705 | T143: 303.01
A144: B | B144: 24 | C144: 60 | D144: 3 | E144: 7.5 | F144: 4 | G144: 66.15345912 | H144: 5.506918239 | I144: 7.240251572 | J144: 21.09937107 | K144: 28.33962264 | L144: 397.5 | M144: 28.78 | N144: 262.96 | O144: 21.89 | P144: 83.87 | Q144: 112.65 | R144: 101.385 | S144: 24.079 | T144: 272.036
A145: B | B145: 24 | C145: 60 | D145: 6 | E145: 15 | F145: 4 | G145: 52.92830189 | H145: 5.766037736 | I145: 7.240251572 | J145: 34.06540881 | K145: 41.30566038 | L145: 397.5 | M145: 28.78 | N145: 210.39 | O145: 22.92 | P145: 135.41 | Q145: 164.19 | R145: 147.771 | S145: 25.212 | T145: 224.517
A146: B | B146: 24 | C146: 60 | D146: 12 | E146: 30 | F146: 4 | G146: 29.42893082 | H146: 6.729559748 | I146: 7.242767296 | J146: 56.59874214 | K146: 63.84150943 | L146: 397.5 | M146: 28.79 | N146: 116.98 | O146: 26.75 | P146: 224.98 | Q146: 253.77 | R146: 228.393 | S146: 29.425 | T146: 139.682
A147: B | B147: 36 | C147: 90 | D147: NO IWS | E147: NO IWS | F147: 4 | G147: 77.04402516 | H147: 2.457861635 | I147: 7.235220126 | J147: 13.26289308 | K147: 20.49811321 | L147: 397.5 | M147: 28.76 | N147: 306.25 | O147: 9.77 | P147: 52.72 | Q147: 81.48 | R147: 73.332 | S147: 10.747 | T147: 313.421
A148: B | B148: 36 | C148: 90 | D148: 3 | E148: 7.5 | F148: 4 | G148: 68.44528302 | H148: 2.488050314 | I148: 7.237735849 | J148: 21.82893082 | K148: 29.06666667 | L148: 397.5 | M148: 28.77 | N148: 272.07 | O148: 9.89 | P148: 86.77 | Q148: 115.54 | R148: 103.986 | S148: 10.879 | T148: 282.635
A149: B | B149: 36 | C149: 90 | D149: 6 | E149: 15 | F149: 4 | G149: 55.36855346 | H149: 2.561006289 | I149: 7.235220126 | J149: 34.83522013 | K149: 42.07044025 | L149: 397.5 | M149: 28.76 | N149: 220.09 | O149: 10.18 | P149: 138.47 | Q149: 167.23 | R149: 150.507 | S149: 11.198 | T149: 235.795
A150: B | B150: 36 | C150: 90 | D150: 12 | E150: 30 | F150: 4 | G150: 32.26666667 | H150: 2.739622642 | I150: 7.237735849 | J150: 57.75597484 | K150: 64.99371069 | L150: 397.5 | M150: 28.77 | N150: 128.26 | O150: 10.89 | P150: 229.58 | Q150: 258.35 | R150: 232.515 | S150: 11.979 | T150: 153.006
A151: B | B151: 36 | C151: 90 | D151: 18 | E151: 45 | F151: 4 | G151: 17.94968553 | H151: 3.023899371 | I151: 7.237735849 | J151: 71.78867925 | K151: 79.02641509 | L151: 397.5 | M151: 28.77 | N151: 71.35 | O151: 12.02 | P151: 285.36 | Q151: 314.13 | R151: 282.717 | S151: 13.222 | T151: 101.561
A152: C | B152: 9 | C152: 23 | D152: NO IWS | E152: NO IWS | F152: 0 | G152: 69.4559987 | H152: 1.47622543 | I152: 23.47279993 | J152: 5.59497594 | K152: 29.06777587 | L152: 108.14 | M152: 25.38348585 | N152: 75.10971699 | O152: 1.59639018 | P152: 6.050406981 | Q152: 31.43389283 | R152: 28.29050355 | S152: 1.756029198 | T152: 78.09346725
A153: C | B153: 12 | C153: 30 | D153: NO IWS | E153: NO IWS | F153: 0 | G153: 70.23896909 | H153: 0.7095669195 | I153: 23.44833211 | J153: 5.603131882 | K153: 29.05146399 | L153: 108.14 | M153: 25.35702634 | N153: 75.95642117 | O153: 0.7673256667 | P153: 6.059226817 | Q153: 31.41625316 | R153: 28.27462784 | S153: 0.8440582334 | T153: 79.02131392
A154: C | B154: 18 | C154: 45 | D154: NO IWS | E154: NO IWS | F154: 0 | G154: 70.78541718 | H154: 0.04893564962 | I154: 23.44833211 | J154: 5.717315064 | K154: 29.16564717 | L154: 108.14 | M154: 25.35702634 | N154: 76.54735013 | O154: 0.0529190115 | P154: 6.18270451 | Q154: 31.53973085 | R154: 28.38575777 | S154: 0.05821091265 | T154: 79.69603132
A155: C | B155: 18 | C155: 45 | D155: 3 | E155: 7.5 | F155: 0 | G155: 59.13057663 | H155: 0.08971535764 | I155: 23.44833211 | J155: 17.33137591 | K155: 40.77970802 | L155: 108.14 | M155: 25.35702634 | N155: 63.94380556 | O155: 0.09701818775 | P155: 18.74214991 | Q155: 44.09917625 | R155: 39.68925862 | S155: 0.1067200065 | T155: 68.34402137
A156: C | B156: 18 | C156: 45 | D156: 6 | E156: 15 | F156: 0 | G156: 40.73077237 | H156: 0.1631188321 | I156: 23.44833211 | J156: 35.65777669 | K156: 59.1061088 | L156: 108.14 | M156: 25.35702634 | N156: 44.04625724 | O156: 0.176396705 | P156: 38.56031971 | Q156: 63.91734606 | R156: 57.52561145 | S156: 0.1940363755 | T156: 50.42035217
A157: C | B157: 24 | C157: 60 | D157: NO IWS | E157: NO IWS | F157: 0 | G157: 70.84250877 | H157: 0 | I157: 23.44833211 | J157: =100-G157-H157-I157 -> 5.709159122 | K157: 29.15749123 | L157: 108.14 | M157: 25.35702634 | N157: 76.60908898 | O157: 0 | P157: 6.173884675 | Q157: 31.53091102 | R157: 28.37781992 | S157: 0 | T157: 79.76218008
A158: C | B158: 24 | C158: 60 | D158: 3 | E158: 7.5 | F158: 0 | G158: 59.16320039 | H158: 0 | I158: 23.44833211 | J158: =100-G158-H158-I158 -> 17.3884675 | K158: 40.83679961 | L158: 108.14 | M158: 25.35702634 | N158: 63.9790849 | O158: 0 | P158: 18.80388875 | Q158: 44.1609151 | R158: 39.74482359 | S158: 0 | T158: 68.39517641
A159: C | B159: 24 | C159: 60 | D159: 6 | E159: 15 | F159: 0 | G159: 40.64921295 | H159: 0 | I159: 23.44833211 | J159: =100-G159-H159-I159 -> 35.90245494 | K159: 59.35078705 | L159: 108.14 | M159: 25.35702634 | N159: 43.95805889 | O159: 0 | P159: 38.82491477 | Q159: 64.18194111 | R159: 57.763747 | S159: 0 | T159: 50.376253
A160: C | B160: 24 | C160: 60 | D160: 12 | E160: 30 | F160: 0 | G160: 14.37076911 | H160: 0.03262376641 | I160: 23.44833211 | J160: =100-G160-H160-I160 -> 62.14827502 | K160: 85.59660713 | L160: 108.14 | M160: 25.35702634 | N160: 15.54054971 | O160: 0.035279341 | P160: 67.2071446 | Q160: 92.56417095 | R160: 83.30775385 | S160: 0.0388072751 | T160: 24.79343887
A161: C | B161: 36 | C161: 90 | D161: NO IWS | E161: NO IWS | F161: 0 | G161: 71.03825137 | H161: 0 | I161: 23.44833211 | J161: 5.513416524 | K161: 28.96174863 | L161: 108.14 | M161: 25.35702634 | N161: 76.82076503 | O161: 0 | P161: 5.962208629 | Q161: 31.31923497 | R161: 28.18731148 | S161: 0 | T161: 79.95268852
A162: C | B162: 36 | C162: 90 | D162: 3 | E162: 7.5 | F162: 0 | G162: 59.36709893 | H162: 0 | I162: 23.44833211 | J162: 17.18456896 | K162: 40.63290107 | L162: 108.14 | M162: 25.35702634 | N162: 64.19958078 | O162: 0 | P162: 18.58339287 | Q162: 43.94041922 | R162: 39.54637729 | S162: 0 | T162: 68.59362271
A163: C | B163: 36 | C163: 90 | D163: 6 | E163: 15 | F163: 0 | G163: 40.80417584 | H163: 0 | I163: 23.44833211 | J163: 35.74749205 | K163: 59.19582416 | L163: 108.14 | M163: 25.35702634 | N163: 44.12563576 | O163: 0 | P163: 38.6573379 | Q163: 64.01436424 | R163: 57.61292782 | S163: 0 | T163: 50.52707218
A164: C | B164: 36 | C164: 90 | D164: 12 | E164: 30 | F164: 0 | G164: 14.32183346 | H164: 0 | I164: 23.44833211 | J164: 62.22983443 | K164: 85.67816654 | L164: 108.14 | M164: 25.35702634 | N164: 15.4876307 | O164: 0 | P164: 67.29534296 | Q164: 92.6523693 | R164: 83.38713237 | S164: 0 | T164: 24.75286763
A165: C | B165: 36 | C165: 90 | D165: 18 | E165: 45 | F165: 0 | G165: 4.57548324 | H165: 0 | I165: 23.44833211 | J165: 71.97618465 | K165: 95.42451676 | L165: 108.14 | M165: 25.35702634 | N165: 4.947927575 | O165: 0 | P165: 77.83504608 | Q165: 103.1920724 | R165: 92.87286518 | S165: 0 | T165: 15.26713482
A166: C | B166: 9 | C166: 23 | D166: NO IWS | E166: NO IWS | F166: 0.5 | G166: 72.42048368 | H166: 2.577783937 | I166: 19.97089599 | J166: 5.030836394 | K166: 25.00173238 | L166: 144.31 | M166: 28.82 | N166: 104.51 | O166: 3.72 | P166: 7.26 | Q166: 36.08 | R166: 32.472 | S166: 4.092 | T166: 107.746
A167: C | B167: 12 | C167: 30 | D167: NO IWS | E167: NO IWS | F167: 0.5 | G167: 73.67472802 | H167: 1.344328182 | I167: 19.92931883 | J167: 5.051624974 | K167: 24.9809438 | L167: 144.31 | M167: 28.76 | N167: 106.32 | O167: 1.94 | P167: 7.29 | Q167: 36.05 | R167: 32.445 | S167: 2.134 | T167: 109.731
A168: C | B168: 18 | C168: 45 | D168: NO IWS | E168: NO IWS | F168: 0.5 | G168: 74.57556649 | H168: 0.339546809 | I168: 19.9223893 | J168: 5.162497401 | K168: 25.0848867 | L168: 144.31 | M168: 28.75 | N168: 107.62 | O168: 0.49 | P168: 7.45 | Q168: 36.2 | R168: 32.58 | S168: 0.539 | T168: 111.191
A169: C | B169: 18 | C169: 45 | D169: 3 | E169: 7.5 | F169: 0.5 | G169: 64.46538701 | H169: 0.4227011295 | I169: 19.9223893 | J169: 15.18952256 | K169: 35.11191186 | L169: 144.31 | M169: 28.75 | N169: 93.03 | O169: 0.61 | P169: 21.92 | Q169: 50.67 | R169: 45.603 | S169: 0.671 | T169: 98.036
A170: C | B170: 18 | C170: 45 | D170: 6 | E170: 15 | F170: 0.5 | G170: 47.90381817 | H170: 0.6028688241 | I170: 19.9223893 | J170: 31.57092371 | K170: 51.49331301 | L170: 144.31 | M170: 28.75 | N170: 69.13 | O170: 0.87 | P170: 45.56 | Q170: 74.31 | R170: 66.879 | S170: 0.957 | T170: 76.474
A171: C | B171: 24 | C171: 60 | D171: NO IWS | E171: NO IWS | F171: 0.5 | G171: 74.88739519 | H171: 0.02771810685 | I171: 19.9223893 | J171: 5.162497401 | K171: 25.0848867 | L171: 144.31 | M171: 28.75 | N171: 108.07 | O171: 0.04 | P171: 7.45 | Q171: 36.2 | R171: 32.58 | S171: 0.044 | T171: 111.686
A172: C | B172: 24 | C172: 60 | D172: 3 | E172: 7.5 | F172: 0.5 | G172: 64.77028619 | H172: 0.05543621371 | I172: 19.9223893 | J172: 15.2518883 | K172: 35.1742776 | L172: 144.31 | M172: 28.75 | N172: 93.47 | O172: 0.08 | P172: 22.01 | Q172: 50.76 | R172: 45.684 | S172: 0.088 | T172: 98.538
A173: C | B173: 24 | C173: 60 | D173: 6 | E173: 15 | F173: 0.5 | G173: 48.17406971 | H173: 0.09701337399 | I173: 19.9223893 | J173: 31.80652761 | K173: 51.72891691 | L173: 144.31 | M173: 28.75 | N173: 69.52 | O173: 0.14 | P173: 45.9 | Q173: 74.65 | R173: 67.185 | S173: 0.154 | T173: 76.971
A174: C | B174: 24 | C174: 60 | D174: 12 | E174: 30 | F174: 0.5 | G174: 20.54604671 | H174: 0.3326172822 | I174: 19.9223893 | J174: 59.19894671 | K174: 79.12133601 | L174: 144.31 | M174: 28.75 | N174: 29.65 | O174: 0.48 | P174: 85.43 | Q174: 114.18 | R174: 102.762 | S174: 0.528 | T174: 41.02
A175: C | B175: 36 | C175: 90 | D175: NO IWS | E175: NO IWS | F175: 0.5 | G175: 75.08835147 | H175: 0 | I175: 19.9223893 | J175: 4.989259234 | K175: 24.91164853 | L175: 144.31 | M175: 28.75 | N175: 108.36 | O175: 0 | P175: 7.2 | Q175: 35.95 | R175: 32.355 | S175: 0 | T175: 111.955
A176: C | B176: 36 | C176: 90 | D176: 3 | E176: 7.5 | F176: 0.5 | G176: 64.99896057 | H176: 0 | I176: 19.9223893 | J176: 15.07865013 | K176: 35.00103943 | L176: 144.31 | M176: 28.75 | N176: 93.8 | O176: 0 | P176: 21.76 | Q176: 50.51 | R176: 45.459 | S176: 0 | T176: 98.851
A177: C | B177: 36 | C177: 90 | D177: 6 | E177: 15 | F177: 0.5 | G177: 48.42353267 | H177: 0 | I177: 19.9223893 | J177: 31.65407803 | K177: 51.57646733 | L177: 144.31 | M177: 28.75 | N177: 69.88 | O177: 0 | P177: 45.68 | Q177: 74.43 | R177: 66.987 | S177: 0 | T177: 77.323
A178: C | B178: 36 | C178: 90 | D178: 12 | E178: 30 | F178: 0.5 | G178: 20.74007345 | H178: 0 | I178: 19.9223893 | J178: 59.33753725 | K178: 79.25992655 | L178: 144.31 | M178: 28.75 | N178: 29.93 | O178: 0 | P178: 85.63 | Q178: 114.38 | R178: 102.942 | S178: 0 | T178: 41.368
A179: C | B179: 36 | C179: 90 | D179: 18 | E179: 45 | F179: 0.5 | G179: 8.246136789 | H179: 0 | I179: 19.9223893 | J179: 71.83147391 | K179: 91.75386321 | L179: 144.31 | M179: 28.75 | N179: 11.9 | O179: 0 | P179: 103.66 | Q179: 132.41 | R179: 119.169 | S179: 0 | T179: 25.141
A180: C | B180: 9 | C180: 23 | D180: NO IWS | E180: NO IWS | F180: 1 | G180: 74.67863475 | H180: 5.036569149 | I180: 15.96852837 | J180: 4.31626773 | K180: 20.2847961 | L180: 180.48 | M180: 28.82 | N180: 134.78 | O180: 9.09 | P180: 7.79 | Q180: 36.61 | R180: 32.949 | S180: 9.999 | T180: 137.532
A181: C | B181: 12 | C181: 30 | D181: NO IWS | E181: NO IWS | F181: 1 | G181: 76.92819149 | H181: 2.781471631 | I181: 15.94636525 | J181: 4.343971631 | K181: 20.29033688 | L181: 180.48 | M181: 28.78 | N181: 138.84 | O181: 5.02 | P181: 7.84 | Q181: 36.62 | R181: 32.958 | S181: 5.522 | T181: 142
A182: C | B182: 18 | C182: 45 | D182: NO IWS | E182: NO IWS | F182: 1 | G182: 78.42974291 | H182: 1.18572695 | I182: 15.92974291 | J182: 4.454787234 | K182: 20.38453014 | L182: 180.48 | M182: 28.75 | N182: 141.55 | O182: 2.14 | P182: 8.04 | Q182: 36.79 | R182: 33.111 | S182: 2.354 | T182: 145.015
A183: C | B183: 18 | C183: 45 | D183: 3 | E183: 7.5 | F183: 1 | G183: 70.15181738 | H183: 1.279920213 | I183: 15.93528369 | J183: 12.63297872 | K183: 28.56826241 | L183: 180.48 | M183: 28.76 | N183: 126.61 | O183: 2.31 | P183: 22.8 | Q183: 51.56 | R183: 46.404 | S183: 2.541 | T183: 131.535
A184: C | B184: 18 | C184: 45 | D184: 6 | E184: 15 | F184: 1 | G184: 55.93971631 | H184: 1.5625 | I184: 15.93528369 | J184: 26.5625 | K184: 42.49778369 | L184: 180.48 | M184: 28.76 | N184: 100.96 | O184: 2.82 | P184: 47.94 | Q184: 76.7 | R184: 69.03 | S184: 3.102 | T184: 108.348
A185: C | B185: 24 | C185: 60 | D185: NO IWS | E185: NO IWS | F185: 1 | G185: 79.08355496 | H185: 0.5319148936 | I185: 15.92974291 | J185: =100-G185-H185-I185 -> 4.454787234 | K185: 20.38453014 | L185: 180.48 | M185: 28.75 | N185: 142.73 | O185: 0.96 | P185: 8.04 | Q185: 36.79 | R185: 33.111 | S185: 1.056 | T185: 146.313
A186: C | B186: 24 | C186: 60 | D186: 3 | E186: 7.5 | F186: 1 | G186: 70.87765957 | H186: 0.4986702128 | I186: 15.92974291 | J186: =100-G186-H186-I186 -> 12.6939273 | K186: 28.62367021 | L186: 180.48 | M186: 28.75 | N186: 127.92 | O186: 0.9 | P186: 22.91 | Q186: 51.66 | R186: 46.494 | S186: 0.99 | T186: 132.996
A187: C | B187: 24 | C187: 60 | D187: 6 | E187: 15 | F187: 1 | G187: 56.56028369 | H187: 0.7480053191 | I187: 15.92974291 | J187: =100-G187-H187-I187 -> 26.76196809 | K187: 42.69171099 | L187: 180.48 | M187: 28.75 | N187: 102.08 | O187: 1.35 | P187: 48.3 | Q187: 77.05 | R187: 69.345 | S187: 1.485 | T187: 109.65
A188: C | B188: 24 | C188: 60 | D188: 12 | E188: 30 | F188: 1 | G188: 30.18062943 | H188: 1.16356383 | I188: 15.92974291 | J188: =100-G188-H188-I188 -> 52.72606383 | K188: 68.65580674 | L188: 180.48 | M188: 28.75 | N188: 54.47 | O188: 2.1 | P188: 95.16 | Q188: 123.91 | R188: 111.519 | S188: 2.31 | T188: 66.651
A189: C | B189: 36 | C189: 90 | D189: NO IWS | E189: NO IWS | F189: 1 | G189: 79.72074468 | H189: 0 | I189: 15.92974291 | J189: =100-G189-H189-I189 -> 4.349512411 | K189: 20.27925532 | L189: 180.48 | M189: 28.75 | N189: 143.88 | O189: 0 | P189: 7.85 | Q189: 36.6 | R189: 32.94 | S189: 0 | T189: 147.54
A190: C | B190: 36 | C190: 90 | D190: 3 | E190: 7.5 | F190: 1 | G190: 71.48160461 | H190: 0.01108156028 | I190: 15.92974291 | J190: 12.57757092 | K190: 28.50731383 | L190: 180.48 | M190: 28.75 | N190: 129.01 | O190: 0.02 | P190: 22.7 | Q190: 51.45 | R190: 46.305 | S190: 0.022 | T190: 134.153
A191: C | B191: 36 | C191: 90 | D191: 6 | E191: 15 | F191: 1 | G191: 57.30274823 | H191: 0.08311170213 | I191: 15.92974291 | J191: 26.68439716 | K191: 42.61414007 | L191: 180.48 | M191: 28.75 | N191: 103.42 | O191: 0.15 | P191: 48.16 | Q191: 76.91 | R191: 69.219 | S191: 0.165 | T191: 111.096
A192: C | B192: 36 | C192: 90 | D192: 12 | E192: 30 | F192: 1 | G192: 31.05053191 | H192: 0.1108156028 | I192: 15.92974291 | J192: 52.90890957 | K192: 68.83865248 | L192: 180.48 | M192: 28.75 | N192: 56.04 | O192: 0.2 | P192: 95.49 | Q192: 124.24 | R192: 111.816 | S192: 0.22 | T192: 68.444
A193: C | B193: 36 | C193: 90 | D193: 18 | E193: 45 | F193: 1 | G193: 15.32579787 | H193: 0.2216312057 | I193: 15.92974291 | J193: 68.52282801 | K193: 84.45257092 | L193: 180.48 | M193: 28.75 | N193: 27.66 | O193: 0.4 | P193: 123.67 | Q193: 152.42 | R193: 137.178 | S193: 0.44 | T193: 42.862
A194: C | B194: 9 | C194: 23 | D194: NO IWS | E194: NO IWS | F194: 2 | G194: 73.61759354 | H194: 11.589273 | I194: 11.40732537 | J194: 3.385808085 | K194: 14.79313345 | L194: 252.82 | M194: 28.84 | N194: 186.12 | O194: 29.3 | P194: 8.56 | Q194: 37.4 | R194: 33.66 | S194: 32.23 | T194: 186.93
A195: C | B195: 12 | C195: 30 | D195: NO IWS | E195: NO IWS | F195: 2 | G195: 78.15837355 | H195: 6.98916225 | I195: 11.3994146 | J195: 3.453049601 | K195: 14.8524642 | L195: 252.82 | M195: 28.82 | N195: 197.6 | O195: 17.67 | P195: 8.73 | Q195: 37.55 | R195: 33.795 | S195: 19.437 | T195: 199.588
A196: C | B196: 18 | C196: 45 | D196: NO IWS | E196: NO IWS | F196: 2 | G196: 81.83687999 | H196: 3.188038921 | I196: 11.37963769 | J196: 3.595443398 | K196: 14.97508109 | L196: 252.82 | M196: 28.77 | N196: 206.9 | O196: 8.06 | P196: 9.09 | Q196: 37.86 | R196: 34.074 | S196: 8.866 | T196: 209.88
A197: C | B197: 18 | C197: 45 | D197: 3 | E197: 7.5 | F197: 2 | G197: 75.6625267 | H197: 3.429317301 | I197: 11.38359307 | J197: 9.52456293 | K197: 20.908156 | L197: 252.82 | M197: 28.78 | N197: 191.29 | O197: 8.67 | P197: 24.08 | Q197: 52.86 | R197: 47.574 | S197: 9.537 | T197: 195.709
A198: C | B198: 18 | C198: 45 | D198: 6 | E198: 15 | F198: 2 | G198: 64.51230124 | H198: 4.002847876 | I198: 11.38359307 | J198: 20.10125781 | K198: 31.48485088 | L198: 252.82 | M198: 28.78 | N198: 163.1 | O198: 10.12 | P198: 50.82 | Q198: 79.6 | R198: 71.64 | S198: 11.132 | T198: 170.048
A199: C | B199: 24 | C199: 60 | D199: NO IWS | E199: NO IWS | F199: 2 | G199: 83.19357646 | H199: 1.803654774 | I199: 11.3756823 | J199: =100-G199-H199-I199 -> 3.627086465 | K199: 15.00276877 | L199: 252.82 | M199: 28.76 | N199: 210.33 | O199: 4.56 | P199: 9.17 | Q199: 37.93 | R199: 34.137 | S199: 5.016 | T199: 213.667
A200: C | B200: 24 | C200: 60 | D200: 3 | E200: 7.5 | F200: 2 | G200: 77.13392928 | H200: 1.89462859 | I200: 11.3756823 | J200: =100-G200-H200-I200 -> 9.595759829 | K200: 20.97144213 | L200: 252.82 | M200: 28.76 | N200: 195.01 | O200: 4.79 | P200: 24.26 | Q200: 53.02 | R200: 47.718 | S200: 5.269 | T200: 199.833
A201: C | B201: 24 | C201: 60 | D201: 6 | E201: 15 | F201: 2 | G201: 66.09840994 | H201: 2.262479234 | I201: 11.3756823 | J201: =100-G201-H201-I201 -> 20.26342853 | K201: 31.63911083 | L201: 252.82 | M201: 28.76 | N201: 167.11 | O201: 5.72 | P201: 51.23 | Q201: 79.99 | R201: 71.991 | S201: 6.292 | T201: 174.537
... 160 more rows

Sheet All_Graphs (hidden)

Sheet Soil Group A (hidden)
A2: Soil Type | B2: Profile Depth | C2: Profile Depth | D2: Depth of IWS | E2: Depth of IWS | F2: Run-on Ratio | G2: % Drainage | H2: % Runoff | I2: % Evap | J2: % Exfiltration | K2: % Evap + Exf
A3: A | B3: 9 | C3: 23 | D3: NO IWS | E3: NO IWS | F3: 0 | G3: 16.83386347 | H3: 0.8155941603 | I3: 23.45648805 | J3: 58.89405432 | K3: 82.35054237
A4: A | B4: 12 | C4: 30 | D4: NO IWS | E4: NO IWS | F4: 0 | G4: 17.10300954 | H4: 0.2365223065 | I4: 23.44833211 | J4: 59.21213604 | K4: 82.66046815
A5: A | B5: 18 | C5: 45 | D5: NO IWS | E5: NO IWS | F5: 0 | G5: 16.98882636 | H5: 0 | I5: 23.44833211 | J5: 59.56284153 | K5: 83.01117364
A6: A | B6: 18 | C6: 45 | D6: 3 | E6: 7.5 | F6: 0 | G6: 8.686077808 | H6: 0 | I6: 23.44833211 | J6: 67.86559008 | K6: 91.31392219
A7: A | B7: 18 | C7: 45 | D7: 6 | E7: 15 | F7: 0 | G7: 2.830111736 | H7: 0 | I7: 23.44833211 | J7: 73.72155615 | K7: 97.16988826
A8: A | B8: 24 | C8: 60 | D8: NO IWS | E8: NO IWS | F8: 0 | G8: 16.899111 | H8: 0 | I8: 23.44833211 | J8: 59.65255689 | K8: 83.100889
A9: A | B9: 24 | C9: 60 | D9: 3 | E9: 7.5 | F9: 0 | G9: 6.66340429 | H9: 0 | I9: 23.44833211 | J9: 69.8882636 | K9: 93.33659571
A10: A | B10: 24 | C10: 60 | D10: 6 | E10: 15 | F10: 0 | G10: 2.773020145 | H10: 0 | I10: 23.44833211 | J10: 73.77864774 | K10: 97.22697985
A11: A | B11: 24 | C11: 60 | D11: 12 | E11: 30 | F11: 0 | G11: 0.4567327298 | H11: 0 | I11: 23.44833211 | J11: 76.09493516 | K11: 99.54326727
A12: A | B12: 36 | C12: 90 | D12: NO IWS | E12: NO IWS | F12: 0 | G12: 16.9969823 | H12: 0 | I12: 23.44833211 | J12: 59.55468559 | K12: 83.0030177
A13: A | B13: 36 | C13: 90 | D13: 3 | E13: 7.5 | F13: 0 | G13: 8.694233749 | H13: 0 | I13: 23.44833211 | J13: 67.85743414 | K13: 91.30576625
A14: A | B14: 36 | C14: 90 | D14: 6 | E14: 15 | F14: 0 | G14: 2.838267678 | H14: 0 | I14: 23.44833211 | J14: 73.71340021 | K14: 97.16173232
A15: A | B15: 36 | C15: 90 | D15: 12 | E15: 30 | F15: 0 | G15: 0.5219802626 | H15: 0 | I15: 23.44833211 | J15: 76.02968763 | K15: 99.47801974
A16: A | B16: 36 | C16: 90 | D16: 18 | E16: 45 | F16: 0 | G16: 0.03262376641 | H16: 0 | I16: 23.44833211 | J16: 76.51904412 | K16: 99.96737623
A17: A | B17: 9 | C17: 23 | D17: NO IWS | E17: NO IWS | F17: 0.5 | G17: 20.8301573 | H17: 1.573002564 | I17: 19.92931883 | J17: 57.66752131 | K17: 77.59684014
A18: A | B18: 12 | C18: 30 | D18: NO IWS | E18: NO IWS | F18: 0.5 | G18: 21.23899938 | H18: 0.6929526713 | I18: 19.9223893 | J18: 58.14565865 | K18: 78.06804795
A19: A | B19: 18 | C19: 45 | D19: NO IWS | E19: NO IWS | F19: 0.5 | G19: 21.25978796 | H19: 0.04850668699 | I19: 19.9223893 | J19: 58.76931606 | K19: 78.69170536
A20: A | B20: 18 | C20: 45 | D20: 3 | E20: 7.5 | F20: 0.5 | G20: 12.23754418 | H20: 0.04850668699 | I20: 19.9223893 | J20: 67.79155984 | K20: 87.71394914
A21: A | B21: 18 | C21: 45 | D21: 6 | E21: 15 | F21: 0.5 | G21: 4.691289585 | H21: 0.04850668699 | I21: 19.9223893 | J21: 75.33781443 | K21: 95.26020373
A22: A | B22: 24 | C22: 60 | D22: NO IWS | E22: NO IWS | F22: 0.5 | G22: 21.18356316 | H22: 0 | I22: 19.9223893 | J22: 58.89404754 | K22: 78.81643684
A23: A | B23: 24 | C23: 60 | D23: 3 | E23: 7.5 | F23: 0.5 | G23: 9.805280299 | H23: 0 | I23: 19.9223893 | J23: 70.2723304 | K23: 90.1947197
A24: A | B24: 24 | C24: 60 | D24: 6 | E24: 15 | F24: 0.5 | G24: 4.608135264 | H24: 0 | I24: 19.9223893 | J24: 75.46947543 | K24: 95.39186474
A25: A | B25: 24 | C25: 60 | D25: 12 | E25: 30 | F25: 0.5 | G25: 0.7553184118 | H25: 0 | I25: 19.9223893 | J25: 79.32229229 | K25: 99.24468159
A26: A | B26: 36 | C26: 90 | D26: NO IWS | E26: NO IWS | F26: 0.5 | G26: 21.27364701 | H26: 0 | I26: 19.9223893 | J26: 58.80396369 | K26: 78.72635299
A27: A | B27: 36 | C27: 90 | D27: 3 | E27: 7.5 | F27: 0.5 | G27: 12.2444737 | H27: 0 | I27: 19.9223893 | J27: 67.833137 | K27: 87.7555263
A28: A | B28: 36 | C28: 90 | D28: 6 | E28: 15 | F28: 0.5 | G28: 4.649712425 | H28: 0 | I28: 19.9223893 | J28: 75.42789827 | K28: 95.35028758
A29: A | B29: 36 | C29: 90 | D29: 12 | E29: 30 | F29: 0.5 | G29: 0.8038250987 | H29: 0 | I29: 19.9223893 | J29: 79.2737856 | K29: 99.1961749
A30: A | B30: 36 | C30: 90 | D30: 18 | E30: 45 | F30: 0.5 | G30: 0.1385905343 | H30: 0 | I30: 19.9223893 | J30: 79.93902016 | K30: 99.86140947
A31: A | B31: 9 | C31: 23 | D31: NO IWS | E31: NO IWS | F31: 1 | G31: 25.79787234 | H31: 3.147163121 | I31: 15.94082447 | J31: 55.11414007 | K31: 71.05496454
A32: A | B32: 12 | C32: 30 | D32: NO IWS | E32: NO IWS | F32: 1 | G32: 26.51263298 | H32: 1.667774823 | I32: 15.93528369 | J32: 55.88430851 | K32: 71.8195922
A33: A | B33: 18 | C33: 45 | D33: NO IWS | E33: NO IWS | F33: 1 | G33: 26.72318262 | H33: 0.4598847518 | I33: 15.92974291 | J33: 56.88718972 | K33: 72.81693262
A34: A | B34: 18 | C34: 45 | D34: 3 | E34: 7.5 | F34: 1 | G34: 17.42575355 | H34: 0.4321808511 | I34: 15.92974291 | J34: 66.2123227 | K34: 82.1420656
A35: A | B35: 18 | C35: 45 | D35: 6 | E35: 15 | F35: 1 | G35: 7.79587766 | H35: 0.4321808511 | I35: 15.92974291 | J35: 75.84219858 | K35: 91.77194149
A36: A | B36: 24 | C36: 60 | D36: NO IWS | E36: NO IWS | F36: 1 | G36: 26.75088652 | H36: 0.05540780142 | I36: 15.92974291 | J36: 57.26396277 | K36: 73.19370567
A37: A | B37: 24 | C37: 60 | D37: 3 | E37: 7.5 | F37: 1 | G37: 14.68306738 | H37: 0.04986702128 | I37: 15.92974291 | J37: 69.3373227 | K37: 85.2670656
A38: A | B38: 24 | C38: 60 | D38: 6 | E38: 15 | F38: 1 | G38: 7.751551418 | H38: 0.04432624113 | I38: 15.92974291 | J38: 76.27437943 | K38: 92.20412234
A39: A | B39: 24 | C39: 60 | D39: 12 | E39: 30 | F39: 1 | G39: 1.54587766 | H39: 0.08311170213 | I39: 15.92974291 | J39: 82.44126773 | K39: 98.37101064
A40: A | B40: 36 | C40: 90 | D40: NO IWS | E40: NO IWS | F40: 1 | G40: 26.83953901 | H40: 0 | I40: 15.92974291 | J40: 57.23071809 | K40: 73.16046099
A41: A | B41: 36 | C41: 90 | D41: 3 | E41: 7.5 | F41: 1 | G41: 17.50886525 | H41: 0 | I41: 15.92974291 | J41: 66.56139184 | K41: 82.49113475
A42: A | B42: 36 | C42: 90 | D42: 6 | E42: 15 | F42: 1 | G42: 7.80695922 | H42: 0 | I42: 15.92974291 | J42: 76.26329787 | K42: 92.19304078
A43: A | B43: 36 | C43: 90 | D43: 12 | E43: 30 | F43: 1 | G43: 1.601285461 | H43: 0 | I43: 15.92974291 | J43: 82.46897163 | K43: 98.39871454
A44: A | B44: 36 | C44: 90 | D44: 18 | E44: 45 | F44: 1 | G44: 0.4654255319 | H44: 0 | I44: 15.92974291 | J44: 83.60483156 | K44: 99.53457447
A45: A | B45: 9 | C45: 23 | D45: NO IWS | E45: NO IWS | F45: 2 | G45: 31.124911 | H45: 7.531049759 | I45: 11.39545922 | J45: 49.94858002 | K45: 61.34403924
A46: A | B46: 12 | C46: 30 | D46: NO IWS | E46: NO IWS | F46: 2 | G46: 32.68333201 | H46: 4.271813939 | I46: 11.3756823 | J46: 51.66917174 | K46: 63.04485405
A47: A | B47: 18 | C47: 45 | D47: NO IWS | E47: NO IWS | F47: 2 | G47: 33.40321177 | H47: 1.752234792 | I47: 11.3756823 | J47: 53.46887113 | K47: 64.84455344
A48: A | B48: 18 | C48: 45 | D48: 3 | E48: 7.5 | F48: 2 | G48: 24.87936081 | H48: 1.692904042 | I48: 11.3756823 | J48: 62.05205284 | K48: 73.42773515
A49: A | B49: 18 | C49: 45 | D49: 6 | E49: 15 | F49: 2 | G49: 13.31777549 | H49: 1.661260976 | I49: 11.3756823 | J49: 73.64528123 | K49: 85.02096353
A50: A | B50: 24 | C50: 60 | D50: NO IWS | E50: NO IWS | F50: 2 | G50: 33.59702555 | H50: 0.8068981884 | I50: 11.37172692 | J50: 54.22434934 | K50: 65.59607626
A51: A | B51: 24 | C51: 60 | D51: 3 | E51: 7.5 | F51: 2 | G51: 22.16992327 | H51: 0.7712997389 | I51: 11.37172692 | J51: 65.68705008 | K51: 77.058777
A52: A | B52: 24 | C52: 60 | D52: 6 | E52: 15 | F52: 2 | G52: 13.38501701 | H52: 0.7594335891 | I52: 11.37172692 | J52: 74.48382248 | K52: 85.8555494
A53: A | B53: 24 | C53: 60 | D53: 12 | E53: 30 | F53: 2 | G53: 3.484692667 | H53: 0.8108535717 | I53: 11.37172692 | J53: 84.33272684 | K53: 95.70445376
A54: A | B54: 36 | C54: 90 | D54: NO IWS | E54: NO IWS | F54: 2 | G54: 33.82643778 | H54: 0.07119689898 | I54: 11.37172692 | J54: 54.7306384 | K54: 66.10236532
A55: A | B55: 36 | C55: 90 | D55: 3 | E55: 7.5 | F55: 2 | G55: 25.24721145 | H55: 0.07119689898 | I55: 11.37172692 | J55: 63.30986473 | K55: 74.68159165
A56: A | B56: 36 | C56: 90 | D56: 6 | E56: 15 | F56: 2 | G56: 13.57487541 | H56: 0.07119689898 | I56: 11.37172692 | J56: 74.98220078 | K56: 86.3539277
A57: A | B57: 36 | C57: 90 | D57: 12 | E57: 30 | F57: 2 | G57: 3.631041848 | H57: 0.0672415157 | I57: 11.37172692 | J57: 84.92998972 | K57: 96.30171664
A58: A | B58: 36 | C58: 90 | D58: 18 | E58: 45 | F58: 2 | G58: 1.087730401 | H58: 0.09492919864 | I58: 11.37172692 | J58: 87.44561348 | K58: 98.8173404
A59: A | B59: 9 | C59: 23 | D59: NO IWS | E59: NO IWS | F59: 4 | G59: 33.38113208 | H59: 17.68553459 | I59: 7.252830189 | J59: 41.68050314 | K59: 48.93333333
A60: A | B60: 12 | C60: 30 | D60: NO IWS | E60: NO IWS | F60: 4 | G60: 36.04025157 | H60: 11.77106918 | I60: 7.247798742 | J60: 44.9408805 | K60: 52.18867925
A61: A | B61: 18 | C61: 45 | D61: NO IWS | E61: NO IWS | F61: 4 | G61: 38.11572327 | H61: 5.534591195 | I61: 7.237735849 | J61: 49.11194969 | K61: 56.34968553
A62: A | B62: 18 | C62: 45 | D62: 3 | E62: 7.5 | F62: 4 | G62: 31.58238994 | H62: 5.406289308 | I62: 7.240251572 | J62: 55.77106918 | K62: 63.01132075
A63: A | B63: 18 | C63: 45 | D63: 6 | E63: 15 | F63: 4 | G63: 20.27421384 | H63: 5.388679245 | I63: 7.237735849 | J63: 67.09937107 | K63: 74.33710692
A64: A | B64: 24 | C64: 60 | D64: NO IWS | E64: NO IWS | F64: 4 | G64: 38.75974843 | H64: 3.08427673 | I64: 7.235220126 | J64: 50.92075472 | K64: 58.15597484
A65: A | B65: 24 | C65: 60 | D65: 3 | E65: 7.5 | F65: 4 | G65: 29.76100629 | H65: 2.988679245 | I65: 7.235220126 | J65: 60.01509434 | K65: 67.25031447
A66: A | B66: 24 | C66: 60 | D66: 6 | E66: 15 | F66: 4 | G66: 20.74716981 | H66: 2.973584906 | I66: 7.235220126 | J66: 69.04402516 | K66: 76.27924528
A67: A | B67: 24 | C67: 60 | D67: 12 | E67: 30 | F67: 4 | G67: 7.698113208 | H67: 3.05408805 | I67: 7.235220126 | J67: 82.01257862 | K67: 89.24779874
A68: A | B68: 36 | C68: 90 | D68: NO IWS | E68: NO IWS | F68: 4 | G68: 39.22767296 | H68: 1.194968553 | I68: 7.232704403 | J68: 52.34465409 | K68: 59.57735849
A69: A | B69: 36 | C69: 90 | D69: 3 | E69: 7.5 | F69: 4 | G69: 32.62138365 | H69: 1.177358491 | I69: 7.232704403 | J69: 58.96855346 | K69: 66.20125786
A70: A | B70: 36 | C70: 90 | D70: 6 | E70: 15 | F70: 4 | G70: 21.16226415 | H70: 1.169811321 | I70: 7.232704403 | J70: 70.43522013 | K70: 77.66792453
A71: A | B71: 36 | C71: 90 | D71: 12 | E71: 30 | F71: 4 | G71: 8.13081761 | H71: 1.187421384 | I71: 7.232704403 | J71: 83.4490566 | K71: 90.68176101
A72: A | B72: 36 | C72: 90 | D72: 18 | E72: 45 | F72: 4 | G72: 3.152201258 | H72: 1.187421384 | I72: 7.232704403 | J72: 88.42767296 | K72: 95.66037736

Sheet Soil Group B (hidden)
A2: Soil Type | B2: Profile Depth | C2: Profile Depth | D2: Depth of IWS | E2: Depth of IWS | F2: Run-on Ratio | G2: % Drainage | H2: % Runoff | I2: % Evap | J2: % Exfiltration | K2: % Evap + Exf
A3: B | B3: 9 | C3: 23 | D3: NO IWS | E3: NO IWS | F3: 0 | G3: 55.77032868 | H3: 1.386510073 | I3: 23.47279993 | J3: 19.37036131 | K3: 42.84316124
A4: B | B4: 12 | C4: 30 | D4: NO IWS | E4: NO IWS | F4: 0 | G4: 56.45542778 | H4: 0.6280075035 | I4: 23.44833211 | J4: 19.46823261 | K4: 42.91656472
A5: B | B5: 18 | C5: 45 | D5: NO IWS | E5: NO IWS | F5: 0 | G5: 56.70010603 | H5: 0.02446782481 | I5: 23.44833211 | J5: 19.82709404 | K5: 43.27542615
A6: B | B6: 18 | C6: 45 | D6: 3 | E6: 7.5 | F6: 0 | G6: 35.73118016 | H6: 0.04893564962 | I6: 23.44833211 | J6: 40.77155208 | K6: 64.21988419
A7: B | B7: 18 | C7: 45 | D7: 6 | E7: 15 | F7: 0 | G7: 17.08669766 | H7: 0.05709159122 | I7: 23.44833211 | J7: 59.40787864 | K7: 82.85621075
A8: B | B8: 24 | C8: 60 | D8: NO IWS | E8: NO IWS | F8: 0 | G8: 56.61854661 | H8: 0 | I8: 23.44833211 | J8: 19.93312128 | K8: 43.38145339
A9: B | B9: 24 | C9: 60 | D9: 3 | E9: 7.5 | F9: 0 | G9: 35.60884104 | H9: 0 | I9: 23.44833211 | J9: 40.94282685 | K9: 64.39115896
A10: B | B10: 24 | C10: 60 | D10: 6 | E10: 15 | F10: 0 | G10: 16.87464318 | H10: 0 | I10: 23.44833211 | J10: 59.67702471 | K10: 83.12535682
A11: B | B11: 24 | C11: 60 | D11: 12 | E11: 30 | F11: 0 | G11: 3.091101868 | H11: 0 | I11: 23.44833211 | J11: 73.46056602 | K11: 96.90889813
A12: B | B12: 36 | C12: 90 | D12: NO IWS | E12: NO IWS | F12: 0 | G12: 56.79797733 | H12: 0 | I12: 23.44833211 | J12: 19.75369056 | K12: 43.20202267
A13: B | B13: 36 | C13: 90 | D13: 3 | E13: 7.5 | F13: 0 | G13: 35.75564799 | H13: 0 | I13: 23.44833211 | J13: 40.7960199 | K13: 64.24435201
A14: B | B14: 36 | C14: 90 | D14: 6 | E14: 15 | F14: 0 | G14: 16.9969823 | H14: 0 | I14: 23.44833211 | J14: 59.55468559 | K14: 83.0030177
A15: B | B15: 36 | C15: 90 | D15: 12 | E15: 30 | F15: 0 | G15: 3.140037517 | H15: 0 | I15: 23.44833211 | J15: 73.41163037 | K15: 96.85996248
A16: B | B16: 36 | C16: 90 | D16: 18 | E16: 45 | F16: 0 | G16: 0.8482179268 | H16: 0 | I16: 23.44833211 | J16: 75.70344996 | K16: 99.15178207
A17: B | B17: 9 | C17: 23 | D17: NO IWS | E17: NO IWS | F17: 0.5 | G17: 59.85032222 | H17: 2.42533435 | I17: 19.95703693 | J17: 17.76730649 | K17: 37.72434343
A18: B | B18: 12 | C18: 30 | D18: NO IWS | E18: NO IWS | F18: 0.5 | G18: 60.92439886 | H18: 1.240385282 | I18: 19.92931883 | J18: 17.90589703 | K18: 37.83521585
A19: B | B19: 18 | C19: 45 | D19: NO IWS | E19: NO IWS | F19: 0.5 | G19: 61.49954958 | H19: 0.2841105952 | I19: 19.9223893 | J19: 18.29395052 | K19: 38.21633982
A20: B | B20: 18 | C20: 45 | D20: 3 | E20: 7.5 | F20: 0.5 | G20: 42.41563301 | H20: 0.3118287021 | I20: 19.9223893 | J20: 37.35014898 | K20: 57.27253829
A21: B | B21: 18 | C21: 45 | D21: 6 | E21: 15 | F21: 0.5 | G21: 23.14461922 | H21: 0.339546809 | I21: 19.9223893 | J21: 56.59344467 | K21: 76.51583397
A22: B | B22: 24 | C22: 60 | D22: NO IWS | E22: NO IWS | F22: 0.5 | G22: 61.62428106 | H22: 0.006929526713 | I22: 19.9223893 | J22: 18.44640011 | K22: 38.36878941
A23: B | B23: 24 | C23: 60 | D23: 3 | E23: 7.5 | F23: 0.5 | G23: 42.49878733 | H23: 0.01385905343 | I23: 19.9223893 | J23: 37.56496431 | K23: 57.48735361
A24: B | B24: 24 | C24: 60 | D24: 6 | E24: 15 | F24: 0.5 | G24: 23.08225348 | H24: 0.02078858014 | I24: 19.9223893 | J24: 56.97456864 | K24: 76.89695794
A25: B | B25: 24 | C25: 60 | D25: 12 | E25: 30 | F25: 0.5 | G25: 5.349594623 | H25: 0.06929526713 | I25: 19.9223893 | J25: 74.65872081 | K25: 94.58111011
A26: B | B26: 36 | C26: 90 | D26: NO IWS | E26: NO IWS | F26: 0.5 | G26: 61.7905897 | H26: 0 | I26: 19.9223893 | J26: 18.287021 | K26: 38.2094103
A27: B | B27: 36 | C27: 90 | D27: 3 | E27: 7.5 | F27: 0.5 | G27: 42.63737787 | H27: 0 | I27: 19.9223893 | J27: 37.44023283 | K27: 57.36262213
A28: B | B28: 36 | C28: 90 | D28: 6 | E28: 15 | F28: 0.5 | G28: 23.20698496 | H28: 0 | I28: 19.9223893 | J28: 56.87062574 | K28: 76.79301504
A29: B | B29: 36 | C29: 90 | D29: 12 | E29: 30 | F29: 0.5 | G29: 5.335735569 | H29: 0 | I29: 19.9223893 | J29: 74.74187513 | K29: 94.66426443
A30: B | B30: 36 | C30: 90 | D30: 18 | E30: 45 | F30: 0.5 | G30: 1.732381678 | H30: 0 | I30: 19.9223893 | J30: 78.34522902 | K30: 98.26761832
A31: B | B31: 9 | C31: 23 | D31: NO IWS | E31: NO IWS | F31: 1 | G31: 63.55828901 | H31: 4.759530142 | I31: 15.97406915 | J31: 15.7081117 | K31: 31.68218085
A32: B | B32: 12 | C32: 30 | D32: NO IWS | E32: NO IWS | F32: 1 | G32: 65.53080674 | H32: 2.587544326 | I32: 15.94636525 | J32: 15.93528369 | K32: 31.88164894
A33: B | B33: 18 | C33: 45 | D33: NO IWS | E33: NO IWS | F33: 1 | G33: 66.64450355 | H33: 1.047207447 | I33: 15.92974291 | J33: 16.3785461 | K33: 32.30828901
A34: B | B34: 18 | C34: 45 | D34: 3 | E34: 7.5 | F34: 1 | G34: 50.26595745 | H34: 1.074911348 | I34: 15.92974291 | J34: 32.7293883 | K34: 48.65913121
A35: B | B35: 18 | C35: 45 | D35: 6 | E35: 15 | F35: 1 | G35: 31.01174645 | H35: 1.135859929 | I35: 15.92974291 | J35: 51.92265071 | K35: 67.85239362
A36: B | B36: 24 | C36: 60 | D36: NO IWS | E36: NO IWS | F36: 1 | G36: 67.14317376 | H36: 0.3379875887 | I36: 15.92974291 | J36: 16.58909574 | K36: 32.51883865
A37: B | B37: 24 | C37: 60 | D37: 3 | E37: 7.5 | F37: 1 | G37: 50.6981383 | H37: 0.3656914894 | I37: 15.92974291 | J37: 33.0064273 | K37: 48.93617021
A38: B | B38: 24 | C38: 60 | D38: 6 | E38: 15 | F38: 1 | G38: 31.27216312 | H38: 0.4044769504 | I38: 15.92974291 | J38: 52.39361702 | K38: 68.32335993
A39: B | B39: 24 | C39: 60 | D39: 12 | E39: 30 | F39: 1 | G39: 9.341755319 | H39: 0.548537234 | I39: 15.92974291 | J39: 74.17996454 | K39: 90.10970745
A40: B | B40: 36 | C40: 90 | D40: NO IWS | E40: NO IWS | F40: 1 | G40: 67.52548759 | H40: 0 | I40: 15.92974291 | J40: 16.5447695 | K40: 32.47451241
A41: B | B41: 36 | C41: 90 | D41: 3 | E41: 7.5 | F41: 1 | G41: 51.08599291 | H41: 0 | I41: 15.92974291 | J41: 32.98426418 | K41: 48.91400709
A42: B | B42: 36 | C42: 90 | D42: 6 | E42: 15 | F42: 1 | G42: 31.66555851 | H42: 0 | I42: 15.92974291 | J42: 52.40469858 | K42: 68.33444149
A43: B | B43: 36 | C43: 90 | D43: 12 | E43: 30 | F43: 1 | G43: 9.696365248 | H43: 0.01662234043 | I43: 15.92974291 | J43: 74.3572695 | K43: 90.28701241
A44: B | B44: 36 | C44: 90 | D44: 18 | E44: 45 | F44: 1 | G44: 3.446365248 | H44: 0.01662234043 | I44: 15.92974291 | J44: 80.6072695 | K44: 96.53701241
A45: B | B45: 9 | C45: 23 | D45: NO IWS | E45: NO IWS | F45: 2 | G45: 64.71798117 | H45: 10.98409936 | I45: 11.40732537 | J45: 12.8905941 | K45: 24.29791947
A46: B | B46: 12 | C46: 30 | D46: NO IWS | E46: NO IWS | F46: 2 | G46: 68.66940907 | H46: 6.569891622 | I46: 11.3994146 | J46: 13.36128471 | K46: 24.76069931
A47: B | B47: 18 | C47: 45 | D47: NO IWS | E47: NO IWS | F47: 2 | G47: 71.62803576 | H47: 2.934894391 | I47: 11.38359307 | J47: 14.05347678 | K47: 25.43706985
A48: B | B48: 18 | C48: 45 | D48: 3 | E48: 7.5 | F48: 2 | G48: 58.95498774 | H48: 2.998180524 | I48: 11.38359307 | J48: 26.66323867 | K48: 38.04683174
A49: B | B49: 18 | C49: 45 | D49: 6 | E49: 15 | F49: 2 | G49: 42.01012578 | H49: 3.160351238 | I49: 11.38359307 | J49: 43.44592991 | K49: 54.82952298
A50: B | B50: 24 | C50: 60 | D50: NO IWS | E50: NO IWS | F50: 2 | G50: 72.62479234 | H50: 1.62961791 | I50: 11.37172692 | J50: 14.37386283 | K50: 25.74558975
A51: B | B51: 24 | C51: 60 | D51: 3 | E51: 7.5 | F51: 2 | G51: 59.92010126 | H51: 1.657305593 | I51: 11.37172692 | J51: 27.05086623 | K51: 38.42259315
A52: B | B52: 24 | C52: 60 | D52: 6 | E52: 15 | F52: 2 | G52: 42.83680089 | H52: 1.708725576 | I52: 11.3756823 | J52: 44.07879123 | K52: 55.45447354
A53: B | B53: 24 | C53: 60 | D53: 12 | E53: 30 | F53: 2 | G53: 17.93766316 | H53: 1.993513171 | I53: 11.3756823 | J53: 68.69314137 | K53: 80.06882367
A54: B | B54: 36 | C54: 90 | D54: NO IWS | E54: NO IWS | F54: 2 | G54: 73.58595048 | H54: 0.4548690768 | I54: 11.37172692 | J54: 14.58745352 | K54: 25.95918044
A55: B | B55: 36 | C55: 90 | D55: 3 | E55: 7.5 | F55: 2 | G55: 60.87334863 | H55: 0.4706906099 | I55: 11.37172692 | J55: 27.28423384 | K55: 38.65596076
A56: B | B56: 36 | C56: 90 | D56: 6 | E56: 15 | F56: 2 | G56: 43.80586979 | H56: 0.5102444427 | I56: 11.37172692 | J56: 44.31215885 | K56: 55.68388577
A57: B | B57: 36 | C57: 90 | D57: 12 | E57: 30 | F57: 2 | G57: 18.83553516 | H57: 0.6209951744 | I57: 11.37172692 | J57: 69.17174274 | K57: 80.54346966
A58: B | B58: 36 | C58: 90 | D58: 18 | E58: 45 | F58: 2 | G58: 8.013606518 | H58: 0.7159243731 | I58: 11.37172692 | J58: 79.89874219 | K58: 91.27046911
A59: B | B59: 9 | C59: 23 | D59: NO IWS | E59: NO IWS | F59: 4 | G59: 59.11949686 | H59: 23.95471698 | I59: 7.277987421 | J59: 9.647798742 | K59: 16.92578616
A60: B | B60: 12 | C60: 30 | D60: NO IWS | E60: NO IWS | F60: 4 | G60: 65.28553459 | H60: 17.00125786 | I60: 7.257861635 | J60: 10.45534591 | K60: 17.71320755
A61: B | B61: 18 | C61: 45 | D61: NO IWS | E61: NO IWS | F61: 4 | G61: 71.87924528 | H61: 9.104402516 | I61: 7.247798742 | J61: 11.76855346 | K61: 19.0163522
A62: B | B62: 18 | C62: 45 | D62: 3 | E62: 7.5 | F62: 4 | G62: 63.21257862 | H62: 9.265408805 | I62: 7.247798742 | J62: 20.27421384 | K62: 27.52201258
A63: B | B63: 18 | C63: 45 | D63: 6 | E63: 15 | F63: 4 | G63: 49.86666667 | H63: 9.831446541 | I63: 7.250314465 | J63: 33.05157233 | K63: 40.30188679
A64: B | B64: 24 | C64: 60 | D64: NO IWS | E64: NO IWS | F64: 4 | G64: 74.79245283 | H64: 5.421383648 | I64: 7.240251572 | J64: 12.54591195 | K64: 19.78616352
A65: B | B65: 24 | C65: 60 | D65: 3 | E65: 7.5 | F65: 4 | G65: 66.15345912 | H65: 5.506918239 | I65: 7.240251572 | J65: 21.09937107 | K65: 28.33962264
A66: B | B66: 24 | C66: 60 | D66: 6 | E66: 15 | F66: 4 | G66: 52.92830189 | H66: 5.766037736 | I66: 7.240251572 | J66: 34.06540881 | K66: 41.30566038
A67: B | B67: 24 | C67: 60 | D67: 12 | E67: 30 | F67: 4 | G67: 29.42893082 | H67: 6.729559748 | I67: 7.242767296 | J67: 56.59874214 | K67: 63.84150943
A68: B | B68: 36 | C68: 90 | D68: NO IWS | E68: NO IWS | F68: 4 | G68: 77.04402516 | H68: 2.457861635 | I68: 7.235220126 | J68: 13.26289308 | K68: 20.49811321
A69: B | B69: 36 | C69: 90 | D69: 3 | E69: 7.5 | F69: 4 | G69: 68.44528302 | H69: 2.488050314 | I69: 7.237735849 | J69: 21.82893082 | K69: 29.06666667
A70: B | B70: 36 | C70: 90 | D70: 6 | E70: 15 | F70: 4 | G70: 55.36855346 | H70: 2.561006289 | I70: 7.235220126 | J70: 34.83522013 | K70: 42.07044025
A71: B | B71: 36 | C71: 90 | D71: 12 | E71: 30 | F71: 4 | G71: 32.26666667 | H71: 2.739622642 | I71: 7.237735849 | J71: 57.75597484 | K71: 64.99371069
A72: B | B72: 36 | C72: 90 | D72: 18 | E72: 45 | F72: 4 | G72: 17.94968553 | H72: 3.023899371 | I72: 7.237735849 | J72: 71.78867925 | K72: 79.02641509

Sheet Soil Group C (hidden)
A2: Soil Type | B2: Profile Depth | C2: Profile Depth | D2: Depth of IWS | E2: Depth of IWS | F2: Run-on Ratio | G2: % Drainage | H2: % Runoff | I2: % Evap | J2: % Exfiltration | K2: % Evap + Exf
A3: C | B3: 9 | C3: 23 | D3: NO IWS | E3: NO IWS | F3: 0 | G3: 69.4559987 | H3: 1.47622543 | I3: 23.47279993 | J3: 5.59497594 | K3: 29.06777587
A4: C | B4: 12 | C4: 30 | D4: NO IWS | E4: NO IWS | F4: 0 | G4: 70.23896909 | H4: 0.7095669195 | I4: 23.44833211 | J4: 5.603131882 | K4: 29.05146399
A5: C | B5: 18 | C5: 45 | D5: NO IWS | E5: NO IWS | F5: 0 | G5: 70.78541718 | H5: 0.04893564962 | I5: 23.44833211 | J5: 5.717315064 | K5: 29.16564717
A6: C | B6: 18 | C6: 45 | D6: 3 | E6: 7.5 | F6: 0 | G6: 59.13057663 | H6: 0.08971535764 | I6: 23.44833211 | J6: 17.33137591 | K6: 40.77970802
A7: C | B7: 18 | C7: 45 | D7: 6 | E7: 15 | F7: 0 | G7: 40.73077237 | H7: 0.1631188321 | I7: 23.44833211 | J7: 35.65777669 | K7: 59.1061088
A8: C | B8: 24 | C8: 60 | D8: NO IWS | E8: NO IWS | F8: 0 | G8: 70.84250877 | H8: 0 | I8: 23.44833211 | J8: 5.709159122 | K8: 29.15749123
A9: C | B9: 24 | C9: 60 | D9: 3 | E9: 7.5 | F9: 0 | G9: 59.16320039 | H9: 0 | I9: 23.44833211 | J9: 17.3884675 | K9: 40.83679961
A10: C | B10: 24 | C10: 60 | D10: 6 | E10: 15 | F10: 0 | G10: 40.64921295 | H10: 0 | I10: 23.44833211 | J10: 35.90245494 | K10: 59.35078705
A11: C | B11: 24 | C11: 60 | D11: 12 | E11: 30 | F11: 0 | G11: 14.37076911 | H11: 0.03262376641 | I11: 23.44833211 | J11: 62.14827502 | K11: 85.59660713
A12: C | B12: 36 | C12: 90 | D12: NO IWS | E12: NO IWS | F12: 0 | G12: 71.03825137 | H12: 0 | I12: 23.44833211 | J12: 5.513416524 | K12: 28.96174863
A13: C | B13: 36 | C13: 90 | D13: 3 | E13: 7.5 | F13: 0 | G13: 59.36709893 | H13: 0 | I13: 23.44833211 | J13: 17.18456896 | K13: 40.63290107
A14: C | B14: 36 | C14: 90 | D14: 6 | E14: 15 | F14: 0 | G14: 40.80417584 | H14: 0 | I14: 23.44833211 | J14: 35.74749205 | K14: 59.19582416
A15: C | B15: 36 | C15: 90 | D15: 12 | E15: 30 | F15: 0 | G15: 14.32183346 | H15: 0 | I15: 23.44833211 | J15: 62.22983443 | K15: 85.67816654
A16: C | B16: 36 | C16: 90 | D16: 18 | E16: 45 | F16: 0 | G16: 4.57548324 | H16: 0 | I16: 23.44833211 | J16: 71.97618465 | K16: 95.42451676
A17: C | B17: 9 | C17: 23 | D17: NO IWS | E17: NO IWS | F17: 0.5 | G17: 72.42048368 | H17: 2.577783937 | I17: 19.97089599 | J17: 5.030836394 | K17: 25.00173238
A18: C | B18: 12 | C18: 30 | D18: NO IWS | E18: NO IWS | F18: 0.5 | G18: 73.67472802 | H18: 1.344328182 | I18: 19.92931883 | J18: 5.051624974 | K18: 24.9809438
A19: C | B19: 18 | C19: 45 | D19: NO IWS | E19: NO IWS | F19: 0.5 | G19: 74.57556649 | H19: 0.339546809 | I19: 19.9223893 | J19: 5.162497401 | K19: 25.0848867
A20: C | B20: 18 | C20: 45 | D20: 3 | E20: 7.5 | F20: 0.5 | G20: 64.46538701 | H20: 0.4227011295 | I20: 19.9223893 | J20: 15.18952256 | K20: 35.11191186
A21: C | B21: 18 | C21: 45 | D21: 6 | E21: 15 | F21: 0.5 | G21: 47.90381817 | H21: 0.6028688241 | I21: 19.9223893 | J21: 31.57092371 | K21: 51.49331301
A22: C | B22: 24 | C22: 60 | D22: NO IWS | E22: NO IWS | F22: 0.5 | G22: 74.88739519 | H22: 0.02771810685 | I22: 19.9223893 | J22: 5.162497401 | K22: 25.0848867
A23: C | B23: 24 | C23: 60 | D23: 3 | E23: 7.5 | F23: 0.5 | G23: 64.77028619 | H23: 0.05543621371 | I23: 19.9223893 | J23: 15.2518883 | K23: 35.1742776
A24: C | B24: 24 | C24: 60 | D24: 6 | E24: 15 | F24: 0.5 | G24: 48.17406971 | H24: 0.09701337399 | I24: 19.9223893 | J24: 31.80652761 | K24: 51.72891691
A25: C | B25: 24 | C25: 60 | D25: 12 | E25: 30 | F25: 0.5 | G25: 20.54604671 | H25: 0.3326172822 | I25: 19.9223893 | J25: 59.19894671 | K25: 79.12133601
A26: C | B26: 36 | C26: 90 | D26: NO IWS | E26: NO IWS | F26: 0.5 | G26: 75.08835147 | H26: 0 | I26: 19.9223893 | J26: 4.989259234 | K26: 24.91164853
A27: C | B27: 36 | C27: 90 | D27: 3 | E27: 7.5 | F27: 0.5 | G27: 64.99896057 | H27: 0 | I27: 19.9223893 | J27: 15.07865013 | K27: 35.00103943
A28: C | B28: 36 | C28: 90 | D28: 6 | E28: 15 | F28: 0.5 | G28: 48.42353267 | H28: 0 | I28: 19.9223893 | J28: 31.65407803 | K28: 51.57646733
A29: C | B29: 36 | C29: 90 | D29: 12 | E29: 30 | F29: 0.5 | G29: 20.74007345 | H29: 0 | I29: 19.9223893 | J29: 59.33753725 | K29: 79.25992655
A30: C | B30: 36 | C30: 90 | D30: 18 | E30: 45 | F30: 0.5 | G30: 8.246136789 | H30: 0 | I30: 19.9223893 | J30: 71.83147391 | K30: 91.75386321
A31: C | B31: 9 | C31: 23 | D31: NO IWS | E31: NO IWS | F31: 1 | G31: 74.67863475 | H31: 5.036569149 | I31: 15.96852837 | J31: 4.31626773 | K31: 20.2847961
A32: C | B32: 12 | C32: 30 | D32: NO IWS | E32: NO IWS | F32: 1 | G32: 76.92819149 | H32: 2.781471631 | I32: 15.94636525 | J32: 4.343971631 | K32: 20.29033688
A33: C | B33: 18 | C33: 45 | D33: NO IWS | E33: NO IWS | F33: 1 | G33: 78.42974291 | H33: 1.18572695 | I33: 15.92974291 | J33: 4.454787234 | K33: 20.38453014
A34: C | B34: 18 | C34: 45 | D34: 3 | E34: 7.5 | F34: 1 | G34: 70.15181738 | H34: 1.279920213 | I34: 15.93528369 | J34: 12.63297872 | K34: 28.56826241
A35: C | B35: 18 | C35: 45 | D35: 6 | E35: 15 | F35: 1 | G35: 55.93971631 | H35: 1.5625 | I35: 15.93528369 | J35: 26.5625 | K35: 42.49778369
A36: C | B36: 24 | C36: 60 | D36: NO IWS | E36: NO IWS | F36: 1 | G36: 79.08355496 | H36: 0.5319148936 | I36: 15.92974291 | J36: 4.454787234 | K36: 20.38453014
A37: C | B37: 24 | C37: 60 | D37: 3 | E37: 7.5 | F37: 1 | G37: 70.87765957 | H37: 0.4986702128 | I37: 15.92974291 | J37: 12.6939273 | K37: 28.62367021
A38: C | B38: 24 | C38: 60 | D38: 6 | E38: 15 | F38: 1 | G38: 56.56028369 | H38: 0.7480053191 | I38: 15.92974291 | J38: 26.76196809 | K38: 42.69171099
A39: C | B39: 24 | C39: 60 | D39: 12 | E39: 30 | F39: 1 | G39: 30.18062943 | H39: 1.16356383 | I39: 15.92974291 | J39: 52.72606383 | K39: 68.65580674
A40: C | B40: 36 | C40: 90 | D40: NO IWS | E40: NO IWS | F40: 1 | G40: 79.72074468 | H40: 0 | I40: 15.92974291 | J40: 4.349512411 | K40: 20.27925532
A41: C | B41: 36 | C41: 90 | D41: 3 | E41: 7.5 | F41: 1 | G41: 71.48160461 | H41: 0.01108156028 | I41: 15.92974291 | J41: 12.57757092 | K41: 28.50731383
A42: C | B42: 36 | C42: 90 | D42: 6 | E42: 15 | F42: 1 | G42: 57.30274823 | H42: 0.08311170213 | I42: 15.92974291 | J42: 26.68439716 | K42: 42.61414007
A43: C | B43: 36 | C43: 90 | D43: 12 | E43: 30 | F43: 1 | G43: 31.05053191 | H43: 0.1108156028 | I43: 15.92974291 | J43: 52.90890957 | K43: 68.83865248
A44: C | B44: 36 | C44: 90 | D44: 18 | E44: 45 | F44: 1 | G44: 15.32579787 | H44: 0.2216312057 | I44: 15.92974291 | J44: 68.52282801 | K44: 84.45257092
A45: C | B45: 9 | C45: 23 | D45: NO IWS | E45: NO IWS | F45: 2 | G45: 73.61759354 | H45: 11.589273 | I45: 11.40732537 | J45: 3.385808085 | K45: 14.79313345
A46: C | B46: 12 | C46: 30 | D46: NO IWS | E46: NO IWS | F46: 2 | G46: 78.15837355 | H46: 6.98916225 | I46: 11.3994146 | J46: 3.453049601 | K46: 14.8524642
A47: C | B47: 18 | C47: 45 | D47: NO IWS | E47: NO IWS | F47: 2 | G47: 81.83687999 | H47: 3.188038921 | I47: 11.37963769 | J47: 3.595443398 | K47: 14.97508109
A48: C | B48: 18 | C48: 45 | D48: 3 | E48: 7.5 | F48: 2 | G48: 75.6625267 | H48: 3.429317301 | I48: 11.38359307 | J48: 9.52456293 | K48: 20.908156
A49: C | B49: 18 | C49: 45 | D49: 6 | E49: 15 | F49: 2 | G49: 64.51230124 | H49: 4.002847876 | I49: 11.38359307 | J49: 20.10125781 | K49: 31.48485088
A50: C | B50: 24 | C50: 60 | D50: NO IWS | E50: NO IWS | F50: 2 | G50: 83.19357646 | H50: 1.803654774 | I50: 11.3756823 | J50: 3.627086465 | K50: 15.00276877
A51: C | B51: 24 | C51: 60 | D51: 3 | E51: 7.5 | F51: 2 | G51: 77.13392928 | H51: 1.89462859 | I51: 11.3756823 | J51: 9.595759829 | K51: 20.97144213
A52: C | B52: 24 | C52: 60 | D52: 6 | E52: 15 | F52: 2 | G52: 66.09840994 | H52: 2.262479234 | I52: 11.3756823 | J52: 20.26342853 | K52: 31.63911083
A53: C | B53: 24 | C53: 60 | D53: 12 | E53: 30 | F53: 2 | G53: 43.2837592 | H53: 3.073332806 | I53: 11.3756823 | J53: 42.26722569 | K53: 53.642908
A54: C | B54: 36 | C54: 90 | D54: NO IWS | E54: NO IWS | F54: 2 | G54: 84.42765604 | H54: 0.6130844079 | I54: 11.37963769 | J54: 3.579621865 | K54: 14.95925955
A55: C | B55: 36 | C55: 90 | D55: 3 | E55: 7.5 | F55: 2 | G55: 78.41151808 | H55: 0.6605490072 | I55: 11.37172692 | J55: 9.556205996 | K55: 20.92793292
A56: C | B56: 36 | C56: 90 | D56: 6 | E56: 15 | F56: 2 | G56: 67.55794637 | H56: 0.814808955 | I56: 11.37963769 | J56: 20.24760699 | K56: 31.62724468
A57: C | B57: 36 | C57: 90 | D57: 12 | E57: 30 | F57: 2 | G57: 45.03994937 | H57: 1.115418084 | I57: 11.37172692 | J57: 42.47290562 | K57: 53.84463254
A58: C | B58: 36 | C58: 90 | D58: 18 | E58: 45 | F58: 2 | G58: 28.19792738 | H58: 1.499090262 | I58: 11.37172692 | J58: 58.93125544 | K58: 70.30298236
A59: C | B59: 9 | C59: 23 | D59: NO IWS | E59: NO IWS | F59: 4 | G59: 65.37358491 | H59: 24.94339623 | I59: 7.285534591 | J59: 2.397484277 | K59: 9.683018868
A60: C | B60: 12 | C60: 30 | D60: NO IWS | E60: NO IWS | F60: 4 | G60: 72.17610063 | H60: 18.03773585 | I60: 7.262893082 | J60: 2.52327044 | K60: 9.786163522
A61: C | B61: 18 | C61: 45 | D61: NO IWS | E61: NO IWS | F61: 4 | G61: 80.08805031 | H61: 9.914465409 | I61: 7.247798742 | J61: 2.749685535 | K61: 9.997484277
A62: C | B62: 18 | C62: 45 | D62: 3 | E62: 7.5 | F62: 4 | G62: 75.71320755 | H62: 10.4754717 | I62: 7.247798742 | J62: 6.563522013 | K62: 13.81132075
A63: C | B63: 18 | C63: 45 | D63: 6 | E63: 15 | F63: 4 | G63: 67.23018868 | H63: 11.91698113 | I63: 7.255345912 | J63: 13.59748428 | K63: 20.85283019
A64: C | B64: 24 | C64: 60 | D64: NO IWS | E64: NO IWS | F64: 4 | G64: 83.79119497 | H64: 6.090566038 | I64: 7.245283019 | J64: 2.872955975 | K64: 10.11823899
A65: C | B65: 24 | C65: 60 | D65: 3 | E65: 7.5 | F65: 4 | G65: 79.66792453 | H65: 6.387421384 | I65: 7.245283019 | J65: 6.699371069 | K65: 13.94465409
A66: C | B66: 24 | C66: 60 | D66: 6 | E66: 15 | F66: 4 | G66: 71.74842767 | H66: 7.182389937 | I66: 7.245283019 | J66: 13.82389937 | K66: 21.06918239
A67: C | B67: 24 | C67: 60 | D67: 12 | E67: 30 | F67: 4 | G67: 53.26540881 | H67: 9.753459119 | I67: 7.252830189 | J67: 29.72830189 | K67: 36.98113208
A68: C | B68: 36 | C68: 90 | D68: NO IWS | E68: NO IWS | F68: 4 | G68: 86.96352201 | H68: 2.832704403 | I68: 7.235220126 | J68: 2.968553459 | K68: 10.20377358
A69: C | B69: 36 | C69: 90 | D69: 3 | E69: 7.5 | F69: 4 | G69: 83.04402516 | H69: 2.920754717 | I69: 7.235220126 | J69: 6.8 | K69: 14.03522013
A70: C | B70: 36 | C70: 90 | D70: 6 | E70: 15 | F70: 4 | G70: 75.67798742 | H70: 3.137106918 | I70: 7.237735849 | J70: 13.94716981 | K70: 21.18490566
A71: C | B71: 36 | C71: 90 | D71: 12 | E71: 30 | F71: 4 | G71: 58.74968553 | H71: 3.964779874 | I71: 7.235220126 | J71: 30.05031447 | K71: 37.28553459
A72: C | B72: 36 | C72: 90 | D72: 18 | E72: 45 | F72: 4 | G72: 44.22893082 | H72: 5.066666667 | I72: 7.237735849 | J72: 43.46666667 | K72: 50.70440252

Sheet Soil Group D (avg.) (hidden)
A2: Soil Type | B2: Profile Depth | C2: Profile Depth | D2: Depth of IWS | E2: Depth of IWS | F2: Run-on Ratio | G2: % Drainage | H2: % Runoff | I2: % Evap | J2: % Exfiltration | K2: % Evap + Exf
A3: D (avg.) | B3: 9 | C3: 23 | D3: NO IWS | E3: NO IWS | F3: 0 | G3: 72.40029361 | H3: 1.492537313 | I3: 23.47279993 | J3: 2.634369138 | K3: 26.10716907
A4: D (avg.) | B4: 12 | C4: 30 | D4: NO IWS | E4: NO IWS | F4: 0 | G4: 73.19957589 | H4: 0.7177228611 | I4: 23.45648805 | J4: 2.626213196 | K4: 26.08270125
A5: D (avg.) | B5: 18 | C5: 45 | D5: NO IWS | E5: NO IWS | F5: 0 | G5: 73.85205122 | H5: 0.05709159122 | I5: 23.44833211 | J5: 2.64252508 | K5: 26.09085719
A6: D (avg.) | B6: 18 | C6: 45 | D6: 3 | E6: 7.5 | F6: 0 | G6: 67.60459995 | H6: 0.09787129924 | I6: 23.44833211 | J6: 8.84919664 | K6: 32.29752875
A7: D (avg.) | B7: 18 | C7: 45 | D7: 6 | E7: 15 | F7: 0 | G7: 55.96607128 | H7: 0.2120544817 | I7: 23.44833211 | J7: 20.37354213 | K7: 43.82187424
A8: D (avg.) | B8: 24 | C8: 60 | D8: NO IWS | E8: NO IWS | F8: 0 | G8: 73.95807846 | H8: 0 | I8: 23.44833211 | J8: 2.59358943 | K8: 26.04192154
A9: D (avg.) | B9: 24 | C9: 60 | D9: 3 | E9: 7.5 | F9: 0 | G9: 67.71878313 | H9: 0 | I9: 23.44833211 | J9: 8.832884757 | K9: 32.28121687
A10: D (avg.) | B10: 24 | C10: 60 | D10: 6 | E10: 15 | F10: 0 | G10: 56.08841041 | H10: 0 | I10: 23.44833211 | J10: 20.46325748 | K10: 43.91158959
A11: D (avg.) | B11: 24 | C11: 60 | D11: 12 | E11: 30 | F11: 0 | G11: 32.38724411 | H11: 0.08971535764 | I11: 23.44833211 | J11: 44.07470843 | K11: 67.52304054
A12: D (avg.) | B12: 36 | C12: 90 | D12: NO IWS | E12: NO IWS | F12: 0 | G12: 74.161977 | H12: 0 | I12: 23.44833211 | J12: 2.38969089 | K12: 25.838023
A13: D (avg.) | B13: 36 | C13: 90 | D13: 3 | E13: 7.5 | F13: 0 | G13: 67.92268167 | H13: 0 | I13: 23.44833211 | J13: 8.628986216 | K13: 32.07731833
A14: D (avg.) | B14: 36 | C14: 90 | D14: 6 | E14: 15 | F14: 0 | G14: 56.27599706 | H14: 0 | I14: 23.44833211 | J14: 20.27567083 | K14: 43.72400294
A15: D (avg.) | B15: 36 | C15: 90 | D15: 12 | E15: 30 | F15: 0 | G15: 32.42802382 | H15: 0 | I15: 23.44833211 | J15: 44.12364407 | K15: 67.57197618
A16: D (avg.) | B16: 36 | C16: 90 | D16: 18 | E16: 45 | F16: 0 | G16: 16.24663567 | H16: 0 | I16: 23.44833211 | J16: 60.30503222 | K16: 83.75336433
A17: D (avg.) | B17: 9 | C17: 23 | D17: NO IWS | E17: NO IWS | F17: 0.5 | G17: 75.05370383 | H17: 2.598572517 | I17: 19.97089599 | J17: 2.376827663 | K17: 22.34772365
A18: D (avg.) | B18: 12 | C18: 30 | D18: NO IWS | E18: NO IWS | F18: 0.5 | G18: 76.33566627 | H18: 1.358187236 | I18: 19.92931883 | J18: 2.376827663 | K18: 22.30614649
A19: D (avg.) | B19: 18 | C19: 45 | D19: NO IWS | E19: NO IWS | F19: 0.5 | G19: 77.33351812 | H19: 0.3534058624 | I19: 19.9223893 | J19: 2.390686716 | K19: 22.31307602
A20: D (avg.) | B20: 18 | C20: 45 | D20: 3 | E20: 7.5 | F20: 0.5 | G20: 71.92848728 | H20: 0.4434897097 | I20: 19.9223893 | J20: 7.705633705 | K20: 27.62802301
A21: D (avg.) | B21: 18 | C21: 45 | D21: 6 | E21: 15 | F21: 0.5 | G21: 61.69357633 | H21: 0.6860231446 | I21: 19.9223893 | J21: 17.69801123 | K21: 37.62040053
A22: D (avg.) | B22: 24 | C22: 60 | D22: NO IWS | E22: NO IWS | F22: 0.5 | G22: 77.69385351 | H22: 0.03464763357 | I22: 19.9223893 | J22: 2.349109556 | K22: 22.27149886
A23: D (avg.) | B23: 24 | C23: 60 | D23: 3 | E23: 7.5 | F23: 0.5 | G23: 72.33732936 | H23: 0.05543621371 | I23: 19.9223893 | J23: 7.684845125 | K23: 27.60723443
A24: D (avg.) | B24: 24 | C24: 60 | D24: 6 | E24: 15 | F24: 0.5 | G24: 62.18557273 | H24: 0.1316610076 | I24: 19.9223893 | J24: 17.76037697 | K24: 37.68276627
A25: D (avg.) | B25: 24 | C25: 60 | D25: 12 | E25: 30 | F25: 0.5 | G25: 40.30212736 | H25: 0.5197145035 | I25: 19.9223893 | J25: 39.25576883 | K25: 59.17815813
A26: D (avg.) | B26: 36 | C26: 90 | D26: NO IWS | E26: NO IWS | F26: 0.5 | G26: 77.90173931 | H26: 0 | I26: 19.9223893 | J26: 2.175871388 | K26: 22.09826069
A27: D (avg.) | B27: 36 | C27: 90 | D27: 3 | E27: 7.5 | F27: 0.5 | G27: 72.56600374 | H27: 0 | I27: 19.9223893 | J27: 7.511606957 | K27: 27.43399626
A28: D (avg.) | B28: 36 | C28: 90 | D28: 6 | E28: 15 | F28: 0.5 | G28: 62.47661285 | H28: 0 | I28: 19.9223893 | J28: 17.60099785 | K28: 37.52338715
A29: D (avg.) | B29: 36 | C29: 90 | D29: 12 | E29: 30 | F29: 0.5 | G29: 40.73868755 | H29: 0 | I29: 19.9223893 | J29: 39.33892315 | K29: 59.26131245
A30: D (avg.) | B30: 36 | C30: 90 | D30: 18 | E30: 45 | F30: 0.5 | G30: 24.20483681 | H30: 0.006929526713 | I30: 19.9223893 | J30: 55.86584436 | K30: 75.78823366
A31: D (avg.) | B31: 9 | C31: 23 | D31: NO IWS | E31: NO IWS | F31: 1 | G31: 76.09153369 | H31: 5.989583333 | I31: 16.04609929 | J31: 1.872783688 | K31: 17.91888298
A32: D (avg.) | B32: 12 | C32: 30 | D32: NO IWS | E32: NO IWS | F32: 1 | G32: 78.71786348 | H32: 3.357712766 | I32: 15.99069149 | J32: 1.93373227 | K32: 17.92442376
A33: D (avg.) | B33: 18 | C33: 45 | D33: NO IWS | E33: NO IWS | F33: 1 | G33: 80.47983156 | H33: 1.57912234 | I33: 15.97406915 | J33: 1.96697695 | K33: 17.9410461
A34: D (avg.) | B34: 18 | C34: 45 | D34: 3 | E34: 7.5 | F34: 1 | G34: 76.40181738 | H34: 1.313164894 | I34: 15.93528369 | J34: 6.349734043 | K34: 22.28501773
A35: D (avg.) | B35: 18 | C35: 45 | D35: 6 | E35: 15 | F35: 1 | G35: 67.94658688 | H35: 1.656693262 | I35: 15.93528369 | J35: 14.46143617 | K35: 30.39671986
A36: D (avg.) | B36: 24 | C36: 60 | D36: NO IWS | E36: NO IWS | F36: 1 | G36: 81.59352837 | H36: 0.4377216312 | I36: 15.92974291 | J36: 2.039007092 | K36: 17.96875
A37: D (avg.) | B37: 24 | C37: 60 | D37: 3 | E37: 7.5 | F37: 1 | G37: 77.21077128 | H37: 0.5208333333 | I37: 15.92974291 | J37: 6.338652482 | K37: 22.26839539
A38: D (avg.) | B38: 24 | C38: 60 | D38: 6 | E38: 15 | F38: 1 | G38: 68.78878546 | H38: 0.742464539 | I38: 15.92974291 | J38: 14.53900709 | K38: 30.46875
A39: D (avg.) | B39: 24 | C39: 60 | D39: 12 | E39: 30 | F39: 1 | G39: 49.9168883 | H39: 1.357491135 | I39: 15.93528369 | J39: 32.79033688 | K39: 48.72562057
A40: D (avg.) | B40: 36 | C40: 90 | D40: NO IWS | E40: NO IWS | F40: 1 | G40: 81.83178191 | H40: 0.3823138298 | I40: 15.97406915 | J40: 1.811835106 | K40: 17.78590426
A41: D (avg.) | B41: 36 | C41: 90 | D41: 3 | E41: 7.5 | F41: 1 | G41: 77.84796099 | H41: 0.01108156028 | I41: 15.92974291 | J41: 6.211214539 | K41: 22.14095745
A42: D (avg.) | B42: 36 | C42: 90 | D42: 6 | E42: 15 | F42: 1 | G42: 69.5866578 | H42: 0.0664893617 | I42: 15.92974291 | J42: 14.41710993 | K42: 30.34685284
A43: D (avg.) | B43: 36 | C43: 90 | D43: 12 | E43: 30 | F43: 1 | G43: 51.08045213 | H43: 0.1440602837 | I43: 15.92974291 | J43: 32.84574468 | K43: 48.77548759
A44: D (avg.) | B44: 36 | C44: 90 | D44: 18 | E44: 45 | F44: 1 | G44: 34.86258865 | H44: 0.4875886525 | I44: 15.92974291 | J44: 48.72007979 | K44: 64.6498227
A45: D (avg.) | B45: 9 | C45: 23 | D45: NO IWS | E45: NO IWS | F45: 2 | G45: 75.34609604 | H45: 11.65255913 | I45: 11.41523614 | J45: 1.586108694 | K45: 13.00134483
A46: D (avg.) | B46: 12 | C46: 30 | D46: NO IWS | E46: NO IWS | F46: 2 | G46: 79.96202832 | H46: 7.024760699 | I46: 11.40336999 | J46: 1.609840994 | K46: 13.01321098
A47: D (avg.) | B47: 18 | C47: 45 | D47: NO IWS | E47: NO IWS | F47: 2 | G47: 83.74733012 | H47: 3.219681987 | I47: 11.37963769 | J47: 1.65335021 | K47: 13.0329879
A48: D (avg.) | B48: 18 | C48: 45 | D48: 3 | E48: 7.5 | F48: 2 | G48: 80.36547741 | H48: 3.520291116 | I48: 11.38754845 | J48: 4.726683016 | K48: 16.11423147
A49: D (avg.) | B49: 18 | C49: 45 | D49: 6 | E49: 15 | F49: 2 | G49: 73.68087968 | H49: 4.279724705 | I49: 11.38754845 | J49: 10.65184716 | K49: 22.03939562
A50: D (avg.) | B50: 24 | C50: 60 | D50: NO IWS | E50: NO IWS | F50: 2 | G50: 85.15940195 | H50: 1.827387074 | I50: 11.3756823 | J50: 1.637528677 | K50: 13.01321098
A51: D (avg.) | B51: 24 | C51: 60 | D51: 3 | E51: 7.5 | F51: 2 | G51: 81.95158611 | H51: 1.942093189 | I51: 11.3756823 | J51: 4.730638399 | K51: 16.1063207
A52: D (avg.) | B52: 24 | C52: 60 | D52: 6 | E52: 15 | F52: 2 | G52: 75.5913298 | H52: 2.325765367 | I52: 11.37963769 | J52: 10.70326715 | K52: 22.08290483
A53: D (avg.) | B53: 24 | C53: 60 | D53: 12 | E53: 30 | F53: 2 | G53: 60.26817499 | H53: 3.686417214 | I53: 11.37963769 | J53: 24.66577011 | K53: 36.0454078
A54: D (avg.) | B54: 36 | C54: 90 | D54: NO IWS | E54: NO IWS | F54: 2 | G54: 85.39672494 | H54: 1.712680959 | I54: 11.44292382 | J54: 1.447670279 | K54: 12.8905941
A55: D (avg.) | B55: 36 | C55: 90 | D55: 3 | E55: 7.5 | F55: 2 | G55: 83.28455027 | H55: 0.6882366901 | I55: 11.37172692 | J55: 4.655486117 | K55: 16.02721304
A56: D (avg.) | B56: 36 | C56: 90 | D56: 6 | E56: 15 | F56: 2 | G56: 77.15370619 | H56: 0.8306304881 | I56: 11.37172692 | J56: 10.6439364 | K56: 22.01566332
A57: D (avg.) | B57: 36 | C57: 90 | D57: 12 | E57: 30 | F57: 2 | G57: 62.6532711 | H57: 1.249901115 | I57: 11.37172692 | J57: 24.72510086 | K57: 36.09682778
A58: D (avg.) | B58: 36 | C58: 90 | D58: 18 | E58: 45 | F58: 2 | G58: 49.32758484 | H58: 1.874851673 | I58: 11.3756823 | J58: 37.42188118 | K58: 48.79756348
A59: D (avg.) | B59: 9 | C59: 23 | D59: NO IWS | E59: NO IWS | F59: 4 | G59: 66.51572327 | H59: 25.08679245 | I59: 7.283018868 | J59: 1.114465409 | K59: 8.397484277
A60: D (avg.) | B60: 12 | C60: 30 | D60: NO IWS | E60: NO IWS | F60: 4 | G60: 73.41886792 | H60: 18.15597484 | I60: 7.262893082 | J60: 1.162264151 | K60: 8.425157233
A61: D (avg.) | B61: 18 | C61: 45 | D61: NO IWS | E61: NO IWS | F61: 4 | G61: 81.50691824 | H61: 10.00251572 | I61: 7.247798742 | J61: 1.242767296 | K61: 8.490566038
A62: D (avg.) | B62: 18 | C62: 45 | D62: 3 | E62: 7.5 | F62: 4 | G62: 78.83522013 | H62: 10.70943396 | I62: 7.252830189 | J62: 3.202515723 | K62: 10.45534591
A63: D (avg.) | B63: 18 | C63: 45 | D63: 6 | E63: 15 | F63: 4 | G63: 73.10943396 | H63: 12.62138365 | I63: 7.255345912 | J63: 7.013836478 | K63: 14.26918239
A64: D (avg.) | B64: 24 | C64: 60 | D64: NO IWS | E64: NO IWS | F64: 4 | G64: 85.31320755 | H64: 6.166037736 | I64: 7.247798742 | J64: 1.272955975 | K64: 8.520754717
A65: D (avg.) | B65: 24 | C65: 60 | D65: 3 | E65: 7.5 | F65: 4 | G65: 82.99622642 | H65: 6.51572327 | I65: 7.245283019 | J65: 3.242767296 | K65: 10.48805031
A66: D (avg.) | B66: 24 | C66: 60 | D66: 6 | E66: 15 | F66: 4 | G66: 78.19119497 | H66: 7.46918239 | I66: 7.245283019 | J66: 7.094339623 | K66: 14.33962264
A67: D (avg.) | B67: 24 | C67: 60 | D67: 12 | E67: 30 | F67: 4 | G67: 65.28805031 | H67: 11.10188679 | I67: 7.252830189 | J67: 16.3572327 | K67: 23.61006289
A68: D (avg.) | B68: 36 | C68: 90 | D68: NO IWS | E68: NO IWS | F68: 4 | G68: 88.60880503 | H68: 2.880503145 | I68: 7.235220126 | J68: 1.275471698 | K68: 8.510691824
A69: D (avg.) | B69: 36 | C69: 90 | D69: 3 | E69: 7.5 | F69: 4 | G69: 86.51572327 | H69: 3.003773585 | I69: 7.235220126 | J69: 3.245283019 | K69: 10.48050314
A70: D (avg.) | B70: 36 | C70: 90 | D70: 6 | E70: 15 | F70: 4 | G70: 82.29685535 | H70: 3.358490566 | I70: 7.237735849 | J70: 7.106918239 | K70: 14.34465409
A71: D (avg.) | B71: 36 | C71: 90 | D71: 12 | E71: 30 | F71: 4 | G71: 71.82893082 | H71: 4.472955975 | I71: 7.242767296 | J71: 16.45534591 | K71: 23.69811321
A72: D (avg.) | B72: 36 | C72: 90 | D72: 18 | E72: 45 | F72: 4 | G72: 61.22767296 | H72: 6.249056604 | I72: 7.247798742 | J72: 25.2754717 | K72: 32.52327044

Sheet Soil Group D (extreme) (hidden)
A2: Soil Type | B2: Profile Depth | C2: Profile Depth | D2: Depth of IWS | E2: Depth of IWS | F2: Run-on Ratio | G2: % Drainage | H2: % Runoff | I2: % Evap | J2: % Exfiltration | K2: % Evap + Exf
A3: D (extreme) | B3: 9 | C3: 23 | D3: NO IWS | E3: NO IWS | F3: 0 | G3: 74.15382106 | H3: 1.500693255 | I3: 23.47279993 | J3: 0.8726857516 | K3: 24.34548569
A4: D (extreme) | B4: 12 | C4: 30 | D4: NO IWS | E4: NO IWS | F4: 0 | G4: 74.97757116 | H4: 0.7258788027 | I4: 23.45648805 | J4: 0.8400619852 | K4: 24.29655004
A5: D (extreme) | B5: 18 | C5: 45 | D5: NO IWS | E5: NO IWS | F5: 0 | G5: 75.7116059 | H5: 0.05709159122 | I5: 23.44833211 | J5: 0.7829703939 | K5: 24.2313025
A6: D (extreme) | B6: 18 | C6: 45 | D6: 3 | E6: 7.5 | F6: 0 | G6: 73.83573934 | H6: 0.09787129924 | I6: 23.44833211 | J6: 2.618057255 | K6: 26.06638936
A7: D (extreme) | B7: 18 | C7: 45 | D7: 6 | E7: 15 | F7: 0 | G7: 70.01875867 | H7: 0.2365223065 | I7: 23.44833211 | J7: 6.296386918 | K7: 29.74471903
A8: D (extreme) | B8: 24 | C8: 60 | D8: NO IWS | E8: NO IWS | F8: 0 | G8: 75.85841285 | H8: 0 | I8: 23.44833211 | J8: 0.6932550363 | K8: 24.14158715
A9: D (extreme) | B9: 24 | C9: 60 | D9: 3 | E9: 7.5 | F9: 0 | G9: 74.01517005 | H9: 0 | I9: 23.44833211 | J9: 2.536497839 | K9: 25.98482995
A10: D (extreme) | B10: 24 | C10: 60 | D10: 6 | E10: 15 | F10: 0 | G10: 70.31237256 | H10: 0 | I10: 23.44833211 | J10: 6.239295327 | K10: 29.68762744
A11: D (extreme) | B11: 24 | C11: 60 | D11: 12 | E11: 30 | F11: 0 | G11: 61.16956203 | H11: 0.1549628905 | I11: 23.44833211 | J11: 15.22714297 | K11: 38.67547508
A12: D (extreme) | B12: 36 | C12: 90 | D12: NO IWS | E12: NO IWS | F12: 0 | G12: 76.06231139 | H12: 0 | I12: 23.44833211 | J12: 0.4893564962 | K12: 23.93768861
A13: D (extreme) | B13: 36 | C13: 90 | D13: 3 | E13: 7.5 | F13: 0 | G13: 74.21906859 | H13: 0 | I13: 23.44833211 | J13: 2.332599299 | K13: 25.78093141
A14: D (extreme) | B14: 36 | C14: 90 | D14: 6 | E14: 15 | F14: 0 | G14: 70.5162711 | H14: 0 | I14: 23.44833211 | J14: 6.035396787 | K14: 29.4837289
A15: D (extreme) | B15: 36 | C15: 90 | D15: 12 | E15: 30 | F15: 0 | G15: 61.46317592 | H15: 0 | I15: 23.44833211 | J15: 15.08849197 | K15: 38.53682408
A16: D (extreme) | B16: 36 | C16: 90 | D16: 18 | E16: 45 | F16: 0 | G16: 52.63029117 | H16: 0 | I16: 23.44833211 | J16: 23.92137672 | K16: 47.36970883
A17: D (extreme) | B17: 9 | C17: 23 | D17: NO IWS | E17: NO IWS | F17: 0.5 | G17: 76.63363592 | H17: 2.612431571 | I17: 19.97089599 | J17: 0.7830365186 | K17: 20.75393251
A18: D (extreme) | B18: 12 | C18: 30 | D18: NO IWS | E18: NO IWS | F18: 0.5 | G18: 77.94331647 | H18: 1.372046289 | I18: 19.92931883 | J18: 0.7553184118 | K18: 20.68463724
A19: D (extreme) | B19: 18 | C19: 45 | D19: NO IWS | E19: NO IWS | F19: 0.5 | G19: 79.01739311 | H19: 0.3603353891 | I19: 19.9223893 | J19: 0.699882198 | K19: 20.6222715
A20: D (extreme) | B20: 18 | C20: 45 | D20: 3 | E20: 7.5 | F20: 0.5 | G20: 77.3543067 | H20: 0.4573487631 | I20: 19.9223893 | J20: 2.265955235 | K20: 22.18834454
A21: D (extreme) | B21: 18 | C21: 45 | D21: 6 | E21: 15 | F21: 0.5 | G21: 73.94497956 | H21: 0.7345298316 | I21: 19.9223893 | J21: 5.39810131 | K21: 25.32049061
A22: D (extreme) | B22: 24 | C22: 60 | D22: NO IWS | E22: NO IWS | F22: 0.5 | G22: 79.41237613 | H22: 0.03464763357 | I22: 19.9223893 | J22: 0.6305869309 | K22: 20.55297623
A23: D (extreme) | B23: 24 | C23: 60 | D23: 3 | E23: 7.5 | F23: 0.5 | G23: 77.81858499 | H23: 0.06236574042 | I23: 19.9223893 | J23: 2.196659968 | K23: 22.11904927
A24: D (extreme) | B24: 24 | C24: 60 | D24: 6 | E24: 15 | F24: 0.5 | G24: 74.59635507 | H24: 0.1316610076 | I24: 19.9223893 | J24: 5.349594623 | K24: 25.27198392
A25: D (extreme) | B25: 24 | C25: 60 | D25: 12 | E25: 30 | F25: 0.5 | G25: 66.41258402 | H25: 0.6028688241 | I25: 19.9223893 | J25: 13.06215785 | K25: 32.98454716
A26: D (extreme) | B26: 36 | C26: 90 | D26: NO IWS | E26: NO IWS | F26: 0.5 | G26: 79.62719146 | H26: 0 | I26: 19.9223893 | J26: 0.4504192364 | K26: 20.37280854
A27: D (extreme) | B27: 36 | C27: 90 | D27: 3 | E27: 7.5 | F27: 0.5 | G27: 78.0541889 | H27: 0 | I27: 19.9223893 | J27: 2.0234218 | K27: 21.9458111
A28: D (extreme) | B28: 36 | C28: 90 | D28: 6 | E28: 15 | F28: 0.5 | G28: 74.90125424 | H28: 0 | I28: 19.9223893 | J28: 5.176356455 | K28: 25.09874576
A29: D (extreme) | B29: 36 | C29: 90 | D29: 12 | E29: 30 | F29: 0.5 | G29: 67.11939575 | H29: 0 | I29: 19.9223893 | J29: 12.95821495 | K29: 32.88060425
A30: D (extreme) | B30: 36 | C30: 90 | D30: 18 | E30: 45 | F30: 0.5 | G30: 59.4553392 | H30: 0.07622479385 | I30: 19.9223893 | J30: 20.54604671 | K30: 40.46843601
A31: D (extreme) | B31: 9 | C31: 23 | D31: NO IWS | E31: NO IWS | F31: 1 | G31: 78.2912234 | H31: 5.06427305 | I31: 15.97406915 | J31: 0.6704343972 | K31: 16.64450355
A32: D (extreme) | B32: 12 | C32: 30 | D32: NO IWS | E32: NO IWS | F32: 1 | G32: 80.58510638 | H32: 2.820257092 | I32: 15.94636525 | J32: 0.6482712766 | K32: 16.59463652
A33: D (extreme) | B33: 18 | C33: 45 | D33: NO IWS | E33: NO IWS | F33: 1 | G33: 82.25288121 | H33: 1.207890071 | I33: 15.92974291 | J33: 0.6094858156 | K33: 16.53922872
A34: D (extreme) | B34: 18 | C34: 45 | D34: 3 | E34: 7.5 | F34: 1 | G34: 80.87322695 | H34: 1.329787234 | I34: 15.93528369 | J34: 1.861702128 | K34: 17.79698582
A35: D (extreme) | B35: 18 | C35: 45 | D35: 6 | E35: 15 | F35: 1 | G35: 77.95323582 | H35: 1.739804965 | I35: 15.93528369 | J35: 4.371675532 | K35: 20.30695922
A36: D (extreme) | B36: 24 | C36: 60 | D36: NO IWS | E36: NO IWS | F36: 1 | G36: 83.07291667 | H36: 0.4488031915 | I36: 15.92974291 | J36: 0.548537234 | K36: 16.47828014
A37: D (extreme) | B37: 24 | C37: 60 | D37: 3 | E37: 7.5 | F37: 1 | G37: 81.72650709 | H37: 0.5374556738 | I37: 15.92974291 | J37: 1.806294326 | K37: 17.73603723
A38: D (extreme) | B38: 24 | C38: 60 | D38: 6 | E38: 15 | F38: 1 | G38: 78.98382092 | H38: 0.7535460993 | I38: 15.92974291 | J38: 4.332890071 | K38: 20.26263298
A39: D (extreme) | B39: 24 | C39: 60 | D39: 12 | E39: 30 | F39: 1 | G39: 71.97473404 | H39: 1.529255319 | I39: 15.93528369 | J39: 10.56072695 | K39: 26.49601064
A40: D (extreme) | B40: 36 | C40: 90 | D40: NO IWS | E40: NO IWS | F40: 1 | G40: 83.66023936 | H40: 0.005540780142 | I40: 15.92974291 | J40: 0.4044769504 | K40: 16.33421986
A41: D (extreme) | B41: 36 | C41: 90 | D41: 3 | E41: 7.5 | F41: 1 | G41: 82.39140071 | H41: 0.01108156028 | I41: 15.92974291 | J41: 1.667774823 | K41: 17.59751773
A42: D (extreme) | B42: 36 | C42: 90 | D42: 6 | E42: 15 | F42: 1 | G42: 79.83710106 | H42: 0.03324468085 | I42: 15.92974291 | J42: 4.199911348 | K42: 20.12965426
A43: D (extreme) | B43: 36 | C43: 90 | D43: 12 | E43: 30 | F43: 1 | G43: 73.43195922 | H43: 0.1773049645 | I43: 15.92974291 | J43: 10.46099291 | K43: 26.39073582
A44: D (extreme) | B44: 36 | C44: 90 | D44: 18 | E44: 45 | F44: 1 | G44: 66.84397163 | H44: 0.5984042553 | I44: 15.92974291 | J44: 16.62788121 | K44: 32.55762411
A45: D (extreme) | B45: 9 | C45: 23 | D45: NO IWS | E45: NO IWS | F45: 2 | G45: 76.40613875 | H45: 11.66838067 | I45: 11.41523614 | J45: 0.5102444427 | K45: 11.92548058
A46: D (extreme) | B46: 12 | C46: 30 | D46: NO IWS | E46: NO IWS | F46: 2 | G46: 81.05766949 | H46: 7.036626849 | I46: 11.3994146 | J46: 0.5062890594 | K46: 11.90570366
A47: D (extreme) | B47: 18 | C47: 45 | D47: NO IWS | E47: NO IWS | F47: 2 | G47: 84.90230203 | H47: 3.23550352 | I47: 11.37963769 | J47: 0.4825567598 | K47: 11.86219445
A48: D (extreme) | B48: 18 | C48: 45 | D48: 3 | E48: 7.5 | F48: 2 | G48: 83.67613322 | H48: 3.563800332 | I48: 11.38359307 | J48: 1.37647338 | K48: 12.76006645
A49: D (extreme) | B49: 18 | C49: 45 | D49: 6 | E49: 15 | F49: 2 | G49: 80.99438336 | H49: 4.449806186 | I49: 11.38754845 | J49: 3.168262005 | K49: 14.55581046
A50: D (extreme) | B50: 24 | C50: 60 | D50: NO IWS | E50: NO IWS | F50: 2 | G50: 86.34601693 | H50: 1.839253224 | I50: 11.3756823 | J50: 0.4390475437 | K50: 11.81472985
A51: D (extreme) | B51: 24 | C51: 60 | D51: 3 | E51: 7.5 | F51: 2 | G51: 85.32157266 | H51: 1.965825488 | I51: 11.3756823 | J51: 1.336919548 | K51: 12.71260185
A52: D (extreme) | B52: 24 | C52: 60 | D52: 6 | E52: 15 | F52: 2 | G52: 83.11842418 | H52: 2.357408433 | I52: 11.3756823 | J52: 3.148485088 | K52: 14.52416739
A53: D (extreme) | B53: 24 | C53: 60 | D53: 12 | E53: 30 | F53: 2 | G53: 76.90847243 | H53: 4.070089392 | I53: 11.37963769 | J53: 7.64180049 | K53: 19.02143818
A54: D (extreme) | B54: 36 | C54: 90 | D54: NO IWS | E54: NO IWS | F54: 2 | G54: 87.64338264 | H54: 0.6407720908 | I54: 11.37172692 | J54: 0.3441183451 | K54: 11.71584527
A55: D (extreme) | B55: 36 | C55: 90 | D55: 3 | E55: 7.5 | F55: 2 | G55: 86.68222451 | H55: 0.70010284 | I55: 11.37172692 | J55: 1.245945732 | K55: 12.61767265
A56: D (extreme) | B56: 36 | C56: 90 | D56: 6 | E56: 15 | F56: 2 | G56: 84.72430979 | H56: 0.8543627878 | I56: 11.37172692 | J56: 3.049600506 | K56: 14.42132743
A57: D (extreme) | B57: 36 | C57: 90 | D57: 12 | E57: 30 | F57: 2 | G57: 79.67724072 | H57: 1.37647338 | I57: 11.37172692 | J57: 7.574558975 | K57: 18.9462859
A58: D (extreme) | B58: 36 | C58: 90 | D58: 18 | E58: 45 | F58: 2 | G58: 74.48382248 | H58: 2.116130053 | I58: 11.3756823 | J58: 12.02436516 | K58: 23.40004746
A59: D (extreme) | B59: 9 | C59: 23 | D59: NO IWS | E59: NO IWS | F59: 4 | G59: 67.19748428 | H59: 25.16226415 | I59: 7.283018868 | J59: 0.3572327044 | K59: 7.640251572
A60: D (extreme) | B60: 12 | C60: 30 | D60: NO IWS | E60: NO IWS | F60: 4 | G60: 74.16603774 | H60: 18.2163522 | I60: 7.262893082 | J60: 0.3547169811 | K60: 7.617610063
A61: D (extreme) | B61: 18 | C61: 45 | D61: NO IWS | E61: NO IWS | F61: 4 | G61: 82.3672956 | H61: 10.02767296 | I61: 7.250314465 | J61: 0.3547169811 | K61: 7.605031447
A62: D (extreme) | B62: 18 | C62: 45 | D62: 3 | E62: 7.5 | F62: 4 | G62: 80.98867925 | H62: 10.83773585 | I62: 7.252830189 | J62: 0.920754717 | K62: 8.173584906
A63: D (extreme) | B63: 18 | C63: 45 | D63: 6 | E63: 15 | F63: 4 | G63: 77.56981132 | H63: 13.11194969 | I63: 7.255345912 | J63: 2.062893082 | K63: 9.318238994
A64: D (extreme) | B64: 24 | C64: 60 | D64: NO IWS | E64: NO IWS | F64: 4 | G64: 86.23396226 | H64: 6.181132075 | I64: 7.245283019 | J64: 0.3396226415 | K64: 7.58490566
A65: D (extreme) | B65: 24 | C65: 60 | D65: 3 | E65: 7.5 | F65: 4 | G65: 85.24779874 | H65: 6.596226415 | I65: 7.245283019 | J65: 0.9106918239 | K65: 8.155974843
A66: D (extreme) | B66: 24 | C66: 60 | D66: 6 | E66: 15 | F66: 4 | G66: 82.99119497 | H66: 7.703144654 | I66: 7.245283019 | J66: 2.060377358 | K66: 9.305660377
A67: D (extreme) | B67: 24 | C67: 60 | D67: 12 | E67: 30 | F67: 4 | G67: 75.50188679 | H67: 12.31698113 | I67: 7.252830189 | J67: 4.928301887 | K67: 12.18113208
A68: D (extreme) | B68: 36 | C68: 90 | D68: NO IWS | E68: NO IWS | F68: 4 | G68: 89.51446541 | H68: 2.955974843 | I68: 7.237735849 | J68: 0.2918238994 | K68: 7.529559748
A69: D (extreme) | B69: 36 | C69: 90 | D69: 3 | E69: 7.5 | F69: 4 | G69: 88.80754717 | H69: 3.091823899 | I69: 7.237735849 | J69: 0.8628930818 | K69: 8.100628931
A70: D (extreme) | B70: 36 | C70: 90 | D70: 6 | E70: 15 | F70: 4 | G70: 87.3081761 | H70: 3.441509434 | I70: 7.237735849 | J70: 2.012578616 | K70: 9.250314465
A71: D (extreme) | B71: 36 | C71: 90 | D71: 12 | E71: 30 | F71: 4 | G71: 83.10440252 | H71: 4.754716981 | I71: 7.242767296 | J71: 4.898113208 | K71: 12.1408805
A72: D (extreme) | B72: 36 | C72: 90 | D72: 18 | E72: 45 | F72: 4 | G72: 78.06037736 | H72: 6.963522013 | I72: 7.247798742 | J72: 7.728301887 | K72: 14.97610063
